Workbook

Sheet Menu

Sheet Feuil1 (hidden)
A1: -3.9
A2: 2.5
A3: 8
A4: 0
E6: 786210
G7: http://www.meteofrance.com/climat/meteo-date-passee?lieuId=
E8: 2019-01-22 | G8: &lieuType=VILLE_FRANCE&date=
E9: =E8+1 -> 2019-01-23
E10: =TEXT(E8,"jj-mm-aaaa") -> 22-01-2019
G11: =CONCATENATE(G7,E6,G8,E10) -> http://www.meteofrance.com/climat/meteo-date-passee?lieuId=786210&lieuType=VILLE_FRANCE&date=22-01-2019
F21: Code_MétéoFrance | J21: Mois | K21: An
E22: Dieppe | F22: 762170 | J22: Janvier | K22: 2019
E23: Evreux | F23: 272290 | J23: Février | K23: 2018
E24: Pontoise | F24: 955000 | J24: Mars | K24: 2017
E25: Cartres | F25: 280850 | J25: Avril | K25: 2016
E26: Le Havre | F26: 763510 | J26: Mai | K26: 2015
E27: Rouen | F27: 765400 | J27: Juin | K27: 2014
E28: Beauvais | F28: 600570 | J28: Juillet | K28: 2013
E29: Abbeville | F29: 800010 | J29: Août | K29: 2012
E30: Trappes | F30: 786210 | J30: Septembre | K30: 2011
J31: Octobre | K31: 2010
E32: =TODAY()-10-Feuil1!E8 -> 6.00 | J32: Novembre | K32: 2009
E33: Temps de mise à jour | G33: =(E32*2*9)/60/60/24 -> 00:01:48 | H33: =TEXT(G33,"hh-mm") -> 00-01 | J33: Décembre | K33: 2008
G34: =LEFT(H33,2) -> 00 | H34: =RIGHT(H33,2) -> 01 | K34: 2007
G35: =CONCATENATE(G34," Heure ",H34," Minutes ") -> 00 Heure 01 Minutes | K35: 2006
K36: 2005
K37: 2004
K38: 2003
K39: 2002
K40: 2001
K41: 2000
K42: 1999
K43: 1998
K44: 1997
K45: 1996
K46: 1995
K47: 1994
K48: 1993
K49: 1992
K50: 1991
K51: 1990
K52: 1989
K53: 1988
K54: 1987
K55: 1986
K56: 1985
K57: 1984
K58: 1983
K59: 1982
K60: 1981
K61: 1980
K62: 1979
K63: 1978
K64: 1977
K65: 1976
K66: 1975
K67: 1974
K68: 1973
K69: 1972
K70: 1971
K71: 1970

Sheet Beauvais
A1: Station | B1: Date | C1: Date_Texte | D1: Jour | E1: Mois | F1: Année | G1: Tmin | H1: Tmax | I1: Ensoleillement | J1: Pluviométrie
A2: Beauvais | B2: 2005-11-04 | C2: =B2 -> 38660 | D2: =DAY(C2) -> 4 | E2: =MONTH(C2) -> 11 | F2: =YEAR(C2) -> 2005 | G2: 9.5 | H2: 14.5 | I2: 1 | J2: 0.2
A3: Beauvais | B3: 2005-11-05 | C3: 38661 | D3: 5 | E3: 11 | F3: 2005 | G3: 5.9 | H3: 13.2 | I3: 1 | J3: 1.2
A4: Beauvais | B4: 2005-11-06 | C4: =B4 -> 38662 | D4: =DAY(C4) -> 6 | E4: 11 | F4: =YEAR(C4) -> 2005 | G4: 5.9 | H4: 14.4 | I4: 4 | J4: 1.6
A5: Beauvais | B5: 2005-11-07 | C5: 38663 | D5: 7 | E5: 11 | F5: 2005 | G5: 9.7 | H5: 15.8 | I5: 4 | J5: 0.2
A6: Beauvais | B6: 2005-11-08 | C6: 38664 | D6: 8 | E6: 11 | F6: 2005 | G6: 8.6 | H6: 15.5 | I6: 8 | J6: 0
A7: Beauvais | B7: 2005-11-09 | C7: 38665 | D7: 9 | E7: 11 | F7: 2005 | G7: 4.7 | H7: 12.2 | I7: 2 | J7: 1.8
A8: Beauvais | B8: 2005-11-10 | C8: 38666 | D8: 10 | E8: 11 | F8: 2005 | G8: -1 | H8: 11.5 | I8: 4 | J8: 0.4
A9: Beauvais | B9: 2005-11-11 | C9: 38667 | D9: 11 | E9: 11 | F9: 2005 | G9: 9.5 | H9: 12.1 | I9: 0 | J9: 0.6
A10: Beauvais | B10: 2005-11-12 | C10: 38668 | D10: 12 | E10: 11 | F10: 2005 | G10: 7.2 | H10: 8.3 | I10: 0 | J10: 4.6
A11: Beauvais | B11: 2005-11-13 | C11: 38669 | D11: 13 | E11: 11 | F11: 2005 | G11: 7.2 | H11: 11.2 | I11: 0 | J11: 0.4
A12: Beauvais | B12: 2005-11-14 | C12: 38670 | D12: 14 | E12: 11 | F12: 2005 | G12: 1.9 | H12: 10.3 | I12: 7 | J12: 0
A13: Beauvais | B13: 2005-11-15 | C13: 38671 | D13: 15 | E13: 11 | F13: 2005 | G13: -1.7 | H13: 7.9 | I13: 0 | J13: 7.2
A14: Beauvais | B14: 2005-11-16 | C14: 38672 | D14: 16 | E14: 11 | F14: 2005 | G14: 2.5 | H14: 9.1 | I14: 3 | J14: 0.6
A15: Beauvais | B15: 2005-11-17 | C15: 38673 | D15: 17 | E15: 11 | F15: 2005 | G15: -2.6 | H15: 8.8 | I15: 7 | J15: 0
A16: Beauvais | B16: 2005-11-18 | C16: 38674 | D16: 18 | E16: 11 | F16: 2005 | G16: -5.1 | H16: 8.4 | I16: 8 | J16: 0.4
A17: Beauvais | B17: 2005-11-19 | C17: 38675 | D17: 19 | E17: 11 | F17: 2005 | G17: -2.3 | H17: 2 | I17: 0 | J17: 0.4
A18: Beauvais | B18: 2005-11-20 | C18: 38676 | D18: 20 | E18: 11 | F18: 2005 | G18: -1.8 | H18: 0.6 | I18: 1 | J18: 0.2
A19: Beauvais | B19: 2005-11-21 | C19: 38677 | D19: 21 | E19: 11 | F19: 2005 | G19: -2.9 | H19: 7.9 | I19: 0 | J19: 0.2
A20: Beauvais | B20: 2005-11-22 | C20: 38678 | D20: 22 | E20: 11 | F20: 2005 | G20: 1.4 | H20: 5.8 | I20: 7 | J20: 0.2
A21: Beauvais | B21: 2005-11-23 | C21: 38679 | D21: 23 | E21: 11 | F21: 2005 | G21: -2.1 | H21: 5.1 | I21: 5 | J21: 0.2
A22: Beauvais | B22: 2005-11-24 | C22: 38680 | D22: 24 | E22: 11 | F22: 2005 | G22: -4.1 | H22: 6.3 | I22: 0 | J22: 2.2
A23: Beauvais | B23: 2005-11-25 | C23: 38681 | D23: 25 | E23: 11 | F23: 2005 | G23: -0.9 | H23: 2.8 | I23: 6 | J23: 0
A24: Beauvais | B24: 2005-11-26 | C24: 38682 | D24: 26 | E24: 11 | F24: 2005 | G24: -0.1 | H24: 2.3 | I24: 0 | J24: 8.4
A25: Beauvais | B25: 2005-11-27 | C25: 38683 | D25: 27 | E25: 11 | F25: 2005 | G25: 0.4 | H25: 5.8 | I25: 1 | J25: 1.6
A26: Beauvais | B26: 2005-11-28 | C26: 38684 | D26: 28 | E26: 11 | F26: 2005 | G26: 1 | H26: 6 | I26: 1 | J26: 6.4
A27: Beauvais | B27: 2005-11-29 | C27: 38685 | D27: 29 | E27: 11 | F27: 2005 | G27: -0.4 | H27: 5.3 | I27: 3 | J27: 0.2
A28: Beauvais | B28: 2005-11-30 | C28: 38686 | D28: 30 | E28: 11 | F28: 2005 | G28: -3.1 | H28: 3.8 | I28: 3 | J28: 0.2
A29: Beauvais | B29: 2005-12-01 | C29: 38687 | D29: 1 | E29: 12 | F29: 2005 | G29: 0.4 | H29: 5.1 | I29: 1 | J29: 1.4
A30: Beauvais | B30: 2005-12-02 | C30: 38688 | D30: 2 | E30: 12 | F30: 2005 | G30: 0.5 | H30: 9.9 | I30: 0 | J30: 1
A31: Beauvais | B31: 2005-12-03 | C31: 38689 | D31: 3 | E31: 12 | F31: 2005 | G31: 6.1 | H31: 10 | I31: 1 | J31: 2.2
A32: Beauvais | B32: 2005-12-04 | C32: 38690 | D32: 4 | E32: 12 | F32: 2005 | G32: 5.9 | H32: 10.6 | I32: 1 | J32: 1.4
A33: Beauvais | B33: 2005-12-05 | C33: 38691 | D33: 5 | E33: 12 | F33: 2005 | G33: 4.9 | H33: 8 | I33: 2 | J33: 0.6
A34: Beauvais | B34: 2005-12-06 | C34: 38692 | D34: 6 | E34: 12 | F34: 2005 | G34: 2.3 | H34: 7 | I34: 0 | J34: 0.6
A35: Beauvais | B35: 2005-12-07 | C35: 38693 | D35: 7 | E35: 12 | F35: 2005 | G35: 0.2 | H35: 8.2 | I35: 1 | J35: 7.2
A36: Beauvais | B36: 2005-12-08 | C36: 38694 | D36: 8 | E36: 12 | F36: 2005 | G36: 4.5 | H36: 7.8 | I36: 0 | J36: 1.2
A37: Beauvais | B37: 2005-12-09 | C37: 38695 | D37: 9 | E37: 12 | F37: 2005 | G37: 0.4 | H37: 4 | I37: 0 | J37: 0
A38: Beauvais | B38: 2005-12-10 | C38: 38696 | D38: 10 | E38: 12 | F38: 2005 | G38: -3.4 | H38: 5.3 | I38: 7 | J38: 0.2
A39: Beauvais | B39: 2005-12-11 | C39: 38697 | D39: 11 | E39: 12 | F39: 2005 | G39: -3 | H39: 4.5 | I39: 8 | J39: 0.2
A40: Beauvais | B40: 2005-12-12 | C40: 38698 | D40: 12 | E40: 12 | F40: 2005 | G40: -3.1 | H40: 6.4 | I40: 0 | J40: 0.4
A41: Beauvais | B41: 2005-12-13 | C41: 38699 | D41: 13 | E41: 12 | F41: 2005 | G41: 3.2 | H41: 6.7 | I41: 0 | J41: 0
A42: Beauvais | B42: 2005-12-14 | C42: 38700 | D42: 14 | E42: 12 | F42: 2005 | G42: 1.5 | H42: 8.7 | I42: 1 | J42: 0
A43: Beauvais | B43: 2005-12-15 | C43: 38701 | D43: 15 | E43: 12 | F43: 2005 | G43: 2.8 | H43: 9.4 | I43: 0 | J43: 0
A44: Beauvais | B44: 2005-12-16 | C44: 38702 | D44: 16 | E44: 12 | F44: 2005 | G44: 7.2 | H44: 12 | I44: 0 | J44: 0
A45: Beauvais | B45: 2005-12-17 | C45: 38703 | D45: 17 | E45: 12 | F45: 2005 | G45: -1 | H45: 3.8 | I45: 6 | J45: 0
A46: Beauvais | B46: 2005-12-18 | C46: 38704 | D46: 18 | E46: 12 | F46: 2005 | G46: -4.7 | H46: 4.2 | I46: 7 | J46: 1
A47: Beauvais | B47: 2005-12-19 | C47: 38705 | D47: 19 | E47: 12 | F47: 2005 | G47: -0.8 | H47: 8 | I47: 2 | J47: 0.2
A48: Beauvais | B48: 2005-12-20 | C48: 38706 | D48: 20 | E48: 12 | F48: 2005 | G48: -2.9 | H48: 1.9 | I48: 0 | J48: 0
A49: Beauvais | B49: 2005-12-21 | C49: 38707 | D49: 21 | E49: 12 | F49: 2005 | G49: 0.5 | H49: 4.2 | I49: 0 | J49: 0
A50: Beauvais | B50: 2005-12-22 | C50: 38708 | D50: 22 | E50: 12 | F50: 2005 | G50: -0.3 | H50: 5.3 | I50: 0 | J50: 0
A51: Beauvais | B51: 2005-12-23 | C51: 38709 | D51: 23 | E51: 12 | F51: 2005 | G51: 2.7 | H51: 6.1 | I51: 0 | J51: 0
A52: Beauvais | B52: 2005-12-24 | C52: 38710 | D52: 24 | E52: 12 | F52: 2005 | G52: 3.2 | H52: 8.9 | I52: 0 | J52: 0.4
A53: Beauvais | B53: 2005-12-25 | C53: 38711 | D53: 25 | E53: 12 | F53: 2005 | G53: -0.5 | H53: 6.8 | I53: 2 | J53: 0
A54: Beauvais | B54: 2005-12-26 | C54: 38712 | D54: 26 | E54: 12 | F54: 2005 | G54: -1.4 | H54: 5.2 | I54: 0 | J54: 1.2
A55: Beauvais | B55: 2005-12-27 | C55: 38713 | D55: 27 | E55: 12 | F55: 2005 | G55: -4.9 | H55: 0.1 | I55: 2 | J55: 0
A56: Beauvais | B56: 2005-12-28 | C56: 38714 | D56: 28 | E56: 12 | F56: 2005 | G56: -5.5 | H56: -0.3 | I56: 0 | J56: 0
A57: Beauvais | B57: 2005-12-29 | C57: 38715 | D57: 29 | E57: 12 | F57: 2005 | G57: -7.2 | H57: 0.6 | I57: 1 | J57: 0
A58: Beauvais | B58: 2005-12-30 | C58: 38716 | D58: 30 | E58: 12 | F58: 2005 | G58: -2.9 | H58: 6.6 | I58: 0 | J58: 3.4
A59: Beauvais | B59: 2005-12-31 | C59: 38717 | D59: 31 | E59: 12 | F59: 2005 | G59: 0.6 | H59: 8.3 | I59: 2 | J59: 2
A60: Beauvais | B60: 2006-01-01 | C60: 38718 | D60: 1 | E60: =MONTH(C60) -> 1 | F60: 2006 | G60: 2 | H60: 7.8 | I60: 0 | J60: 3.8
A61: Beauvais | B61: 2006-01-02 | C61: 38719 | D61: 2 | E61: 1 | F61: 2006 | G61: -0.8 | H61: 6.6 | I61: 6 | J61: 0.4
A62: Beauvais | B62: 2006-01-03 | C62: 38720 | D62: 3 | E62: 1 | F62: 2006 | G62: -1.3 | H62: 4.6 | I62: 0 | J62: 1
A63: Beauvais | B63: 2006-01-04 | C63: 38721 | D63: 4 | E63: 1 | F63: 2006 | G63: 0.3 | H63: 4.6 | I63: 2 | J63: 0
A64: Beauvais | B64: 2006-01-05 | C64: 38722 | D64: 5 | E64: 1 | F64: 2006 | G64: -1.4 | H64: 0.2 | I64: 0 | J64: 1
A65: Beauvais | B65: 2006-01-06 | C65: 38723 | D65: 6 | E65: 1 | F65: 2006 | G65: -0.8 | H65: 1.4 | I65: 1 | J65: 0.2
A66: Beauvais | B66: 2006-01-07 | C66: 38724 | D66: 7 | E66: 1 | F66: 2006 | G66: -0.3 | H66: 3.2 | I66: 3 | J66: 0
A67: Beauvais | B67: 2006-01-08 | C67: 38725 | D67: 8 | E67: 1 | F67: 2006 | G67: -0.6 | H67: 3.2 | I67: 0 | J67: 0
A68: Beauvais | B68: 2006-01-09 | C68: =B68 -> 38726 | D68: =DAY(C68) -> 9 | E68: 1 | F68: =YEAR(C68) -> 2006 | G68: -0.2 | H68: 5.4 | I68: 0 | J68: 0
A69: Beauvais | B69: 2006-01-10 | C69: 38727 | D69: 10 | E69: 1 | F69: 2006 | G69: -2.9 | H69: 5.7 | I69: 0 | J69: 0
A70: Beauvais | B70: 2006-01-11 | C70: 38728 | D70: 11 | E70: 1 | F70: 2006 | G70: 2.1 | H70: 5.4 | I70: 0 | J70: 1.4
A71: Beauvais | B71: 2006-01-12 | C71: 38729 | D71: 12 | E71: 1 | F71: 2006 | G71: 3.4 | H71: 6.1 | I71: 0 | J71: 0
A72: Beauvais | B72: 2006-01-13 | C72: 38730 | D72: 13 | E72: 1 | F72: 2006 | G72: 1.5 | H72: 3.4 | I72: 0 | J72: 0
A73: Beauvais | B73: 2006-01-14 | C73: 38731 | D73: 14 | E73: 1 | F73: 2006 | G73: -0.9 | H73: 7.4 | I73: 7 | J73: 0
A74: Beauvais | B74: 2006-01-15 | C74: 38732 | D74: 15 | E74: 1 | F74: 2006 | G74: -1.9 | H74: 5.5 | I74: 6 | J74: 0
A75: Beauvais | B75: 2006-01-16 | C75: 38733 | D75: 16 | E75: 1 | F75: 2006 | G75: -0.7 | H75: 6.7 | I75: 0 | J75: 2.2
A76: Beauvais | B76: 2006-01-17 | C76: 38734 | D76: 17 | E76: 1 | F76: 2006 | G76: 5.3 | H76: 8.8 | I76: 0 | J76: 7.4
A77: Beauvais | B77: 2006-01-18 | C77: 38735 | D77: 18 | E77: 1 | F77: 2006 | G77: 5 | H77: 10.9 | I77: 0 | J77: 0.8
A78: Beauvais | B78: 2006-01-19 | C78: 38736 | D78: 19 | E78: 1 | F78: 2006 | G78: 7.7 | H78: 11.6 | I78: 0 | J78: 0.4
A79: Beauvais | B79: 2006-01-20 | C79: 38737 | D79: 20 | E79: 1 | F79: 2006 | G79: 5.9 | H79: 10.3 | I79: 0 | J79: 1
A80: Beauvais | B80: 2006-01-21 | C80: 38738 | D80: 21 | E80: 1 | F80: 2006 | G80: 0.5 | H80: 9.1 | I80: 6 | J80: 0
A81: Beauvais | B81: 2006-01-22 | C81: 38739 | D81: 22 | E81: 1 | F81: 2006 | G81: -0.1 | H81: 4.1 | I81: 0 | J81: 0
A82: Beauvais | B82: 2006-01-23 | C82: 38740 | D82: 23 | E82: 1 | F82: 2006 | G82: -0.4 | H82: 3.7 | I82: 6 | J82: 0
A83: Beauvais | B83: 2006-01-24 | C83: 38741 | D83: 24 | E83: 1 | F83: 2006 | G83: -5 | H83: 1.2 | I83: 7 | J83: 0
A84: Beauvais | B84: 2006-01-25 | C84: 38742 | D84: 25 | E84: 1 | F84: 2006 | G84: -8.8 | H84: 3 | I84: 6 | J84: 0
A85: Beauvais | B85: 2006-01-26 | C85: 38743 | D85: 26 | E85: 1 | F85: 2006 | G85: 0.2 | H85: 2 | I85: 0 | J85: 0
A86: Beauvais | B86: 2006-01-27 | C86: 38744 | D86: 27 | E86: 1 | F86: 2006 | G86: -5.7 | H86: -3.4 | I86: 2 | J86: 0
A87: Beauvais | B87: 2006-01-28 | C87: 38745 | D87: 28 | E87: 1 | F87: 2006 | G87: -5.3 | H87: 0 | I87: 0 | J87: 0
A88: Beauvais | B88: 2006-01-29 | C88: 38746 | D88: 29 | E88: 1 | F88: 2006 | G88: -4.1 | H88: 6.8 | I88: 8 | J88: 0
A89: Beauvais | B89: 2006-01-30 | C89: 38747 | D89: 30 | E89: 1 | F89: 2006 | G89: -4.7 | H89: 5.4 | I89: 9 | J89: 0
A90: Beauvais | B90: 2006-01-31 | C90: 38748 | D90: 31 | E90: 1 | F90: 2006 | G90: -2.1 | H90: 4.1 | I90: 6 | J90: 0
A91: Beauvais | B91: 2006-02-01 | C91: 38749 | D91: 1 | E91: 2 | F91: 2006 | G91: -7 | H91: 1.8 | I91: 3 | J91: 0
A92: Beauvais | B92: 2006-02-02 | C92: 38750 | D92: 2 | E92: 2 | F92: 2006 | G92: -2.9 | H92: 0.1 | I92: 0 | J92: 0
A93: Beauvais | B93: 2006-02-03 | C93: 38751 | D93: 3 | E93: 2 | F93: 2006 | G93: -3.7 | H93: 1.4 | I93: 0 | J93: 0
A94: Beauvais | B94: 2006-02-04 | C94: 38752 | D94: 4 | E94: 2 | F94: 2006 | G94: -0.6 | H94: 4.8 | I94: 0 | J94: 0
A95: Beauvais | B95: 2006-02-05 | C95: 38753 | D95: 5 | E95: 2 | F95: 2006 | G95: 0.2 | H95: 5.7 | I95: 0 | J95: 0
A96: Beauvais | B96: 2006-02-06 | C96: 38754 | D96: 6 | E96: 2 | F96: 2006 | G96: 2.3 | H96: 7.2 | I96: 0 | J96: 0
A97: Beauvais | B97: 2006-02-07 | C97: 38755 | D97: 7 | E97: 2 | F97: 2006 | G97: 2.8 | H97: 7.2 | I97: 0 | J97: 0.8
A98: Beauvais | B98: 2006-02-08 | C98: 38756 | D98: 8 | E98: 2 | F98: 2006 | G98: 4.7 | H98: 8.7 | I98: 2 | J98: 1.4
A99: Beauvais | B99: 2006-02-09 | C99: 38757 | D99: 9 | E99: 2 | F99: 2006 | G99: -0.6 | H99: 5.5 | I99: 3 | J99: 0
A100: Beauvais | B100: 2006-02-10 | C100: 38758 | D100: 10 | E100: 2 | F100: 2006 | G100: -2.9 | H100: 6.4 | I100: 7 | J100: 0
A101: Beauvais | B101: 2006-02-11 | C101: 38759 | D101: 11 | E101: 2 | F101: 2006 | G101: -6.1 | H101: 5.4 | I101: 1 | J101: 0
A102: Beauvais | B102: 2006-02-12 | C102: 38760 | D102: 12 | E102: 2 | F102: 2006 | G102: -4.7 | H102: 6.9 | I102: 1 | J102: 2
A103: Beauvais | B103: 2006-02-13 | C103: 38761 | D103: 13 | E103: 2 | F103: 2006 | G103: 2.6 | H103: 8.5 | I103: 0 | J103: 1
A104: Beauvais | B104: 2006-02-14 | C104: 38762 | D104: 14 | E104: 2 | F104: 2006 | G104: 0.9 | H104: 7.7 | I104: 1 | J104: 4
A105: Beauvais | B105: 2006-02-15 | C105: 38763 | D105: 15 | E105: 2 | F105: 2006 | G105: 2.1 | H105: 12.4 | I105: 1 | J105: 12
A106: Beauvais | B106: 2006-02-16 | C106: 38764 | D106: 16 | E106: 2 | F106: 2006 | G106: 6.1 | H106: 10.6 | I106: 2 | J106: 0.7
A107: Beauvais | B107: 2006-02-17 | C107: 38765 | D107: 17 | E107: 2 | F107: 2006 | G107: 4.3 | H107: 10.4 | I107: 2 | J107: 6
A108: Beauvais | B108: 2006-02-18 | C108: 38766 | D108: 18 | E108: 2 | F108: 2006 | G108: 2.1 | H108: 8.5 | I108: 1 | J108: 3
A109: Beauvais | B109: 2006-02-19 | C109: 38767 | D109: 19 | E109: 2 | F109: 2006 | G109: 2.7 | H109: 6.2 | I109: 0 | J109: 21
A110: Beauvais | B110: 2006-02-20 | C110: 38768 | D110: 20 | E110: 2 | F110: 2006 | G110: 2.6 | H110: 7 | I110: 0 | J110: 4
A111: Beauvais | B111: 2006-02-21 | C111: 38769 | D111: 21 | E111: 2 | F111: 2006 | G111: 0.8 | H111: 3.1 | I111: 0 | J111: 5.4
A112: Beauvais | B112: 2006-02-22 | C112: 38770 | D112: 22 | E112: 2 | F112: 2006 | G112: 2.1 | H112: 5 | I112: 0 | J112: 0
A113: Beauvais | B113: 2006-02-23 | C113: 38771 | D113: 23 | E113: 2 | F113: 2006 | G113: -0.5 | H113: 1.1 | I113: 0 | J113: 1
A114: Beauvais | B114: 2006-02-24 | C114: 38772 | D114: 24 | E114: 2 | F114: 2006 | G114: -0.7 | H114: 4.8 | I114: 1 | J114: 1.6
A115: Beauvais | B115: 2006-02-25 | C115: 38773 | D115: 25 | E115: 2 | F115: 2006 | G115: -1 | H115: 2.9 | I115: 1 | J115: 0
A116: Beauvais | B116: 2006-02-26 | C116: 38774 | D116: 26 | E116: 2 | F116: 2006 | G116: -2.2 | H116: 0.8 | I116: 0 | J116: 0
A117: Beauvais | B117: 2006-02-27 | C117: 38775 | D117: 27 | E117: 2 | F117: 2006 | G117: -4.6 | H117: 4.4 | I117: 0 | J117: 0.2
A118: Beauvais | B118: 2006-02-28 | C118: 38776 | D118: 28 | E118: 2 | F118: 2006 | G118: 0.2 | H118: 5.2 | I118: 3 | J118: 3.8
A119: Beauvais | B119: 2006-03-01 | C119: 38777 | D119: 1 | E119: 3 | F119: 2006 | G119: -6.1 | H119: 3.8 | I119: 7 | J119: 3
A120: Beauvais | B120: 2006-03-02 | C120: 38778 | D120: 2 | E120: 3 | F120: 2006 | G120: -2.8 | H120: 4.9 | I120: 6 | J120: 0.6
A121: Beauvais | B121: 2006-03-03 | C121: 38779 | D121: 3 | E121: 3 | F121: 2006 | G121: 0.1 | H121: 1.8 | I121: 0 | J121: 7.8
A122: Beauvais | B122: 2006-03-04 | C122: 38780 | D122: 4 | E122: 3 | F122: 2006 | G122: -4.7 | H122: 3.7 | I122: 1 | J122: 0.2
A123: Beauvais | B123: 2006-03-05 | C123: 38781 | D123: 5 | E123: 3 | F123: 2006 | G123: -4 | H123: 6.4 | I123: 7 | J123: 0
A124: Beauvais | B124: 2006-03-06 | C124: 38782 | D124: 6 | E124: =MONTH(C124) -> 3 | F124: 2006 | G124: -3 | H124: 7.6 | I124: 6 | J124: 1.8
A125: Beauvais | B125: 2006-03-07 | C125: 38783 | D125: 7 | E125: 3 | F125: 2006 | G125: 0.3 | H125: 7.1 | I125: 0 | J125: 6
A126: Beauvais | B126: 2006-03-08 | C126: 38784 | D126: 8 | E126: 3 | F126: 2006 | G126: 2.6 | H126: 11.5 | I126: 0 | J126: 5.6
A127: Beauvais | B127: 2006-03-09 | C127: 38785 | D127: 9 | E127: 3 | F127: 2006 | G127: 6.2 | H127: 11.9 | I127: 1 | J127: 6.2
A128: Beauvais | B128: 2006-03-10 | C128: 38786 | D128: 10 | E128: 3 | F128: 2006 | G128: 2.4 | H128: 9.4 | I128: 4 | J128: 2.6
A129: Beauvais | B129: 2006-03-11 | C129: 38787 | D129: 11 | E129: 3 | F129: 2006 | G129: 2.1 | H129: 4.9 | I129: 0 | J129: 0.8
A130: Beauvais | B130: 2006-03-12 | C130: 38788 | D130: 12 | E130: 3 | F130: 2006 | G130: -4.2 | H130: 1.9 | I130: 10 | J130: 0
A131: Beauvais | B131: 2006-03-13 | C131: 38789 | D131: 13 | E131: 3 | F131: 2006 | G131: -5.1 | H131: 4 | I131: 10 | J131: 0
A132: Beauvais | B132: 2006-03-14 | C132: =B132 -> 38790 | D132: =DAY(C132) -> 14 | E132: 3 | F132: =YEAR(C132) -> 2006 | G132: -2.9 | H132: 7.6 | I132: 10 | J132: 0
A133: Beauvais | B133: 2006-03-15 | C133: 38791 | D133: 15 | E133: 3 | F133: 2006 | G133: -3 | H133: 9.3 | I133: 7 | J133: 0
A134: Beauvais | B134: 2006-03-16 | C134: 38792 | D134: 16 | E134: 3 | F134: 2006 | G134: -2.4 | H134: 1.6 | I134: 0 | J134: 0
A135: Beauvais | B135: 2006-03-17 | C135: 38793 | D135: 17 | E135: 3 | F135: 2006 | G135: -1.6 | H135: 5.2 | I135: 5 | J135: 0
A136: Beauvais | B136: 2006-03-18 | C136: 38794 | D136: 18 | E136: 3 | F136: 2006 | G136: -0.9 | H136: 9.1 | I136: 8 | J136: 0
A137: Beauvais | B137: 2006-03-19 | C137: 38795 | D137: 19 | E137: 3 | F137: 2006 | G137: -0.7 | H137: 9.6 | I137: 7 | J137: 0
A138: Beauvais | B138: 2006-03-20 | C138: 38796 | D138: 20 | E138: 3 | F138: 2006 | G138: -1.2 | H138: 7.9 | I138: 1 | J138: 4.2
A139: Beauvais | B139: 2006-03-21 | C139: 38797 | D139: 21 | E139: 3 | F139: 2006 | G139: 1.4 | H139: 3.6 | I139: 0 | J139: 0.4
A140: Beauvais | B140: 2006-03-22 | C140: 38798 | D140: 22 | E140: 3 | F140: 2006 | G140: -0.1 | H140: 5.7 | I140: 0 | J140: 0
A141: Beauvais | B141: 2006-03-23 | C141: 38799 | D141: 23 | E141: 3 | F141: 2006 | G141: -1.9 | H141: 11.1 | I141: 10 | J141: 5.8
A142: Beauvais | B142: 2006-03-24 | C142: 38800 | D142: 24 | E142: 3 | F142: 2006 | G142: 6.2 | H142: 14.6 | I142: 1 | J142: 1.8
A143: Beauvais | B143: 2006-03-25 | C143: 38801 | D143: 25 | E143: 3 | F143: 2006 | G143: 9.8 | H143: 13.2 | I143: 0 | J143: 5.2
A144: Beauvais | B144: 2006-03-26 | C144: 38802 | D144: 26 | E144: 3 | F144: 2006 | G144: 12.1 | H144: 16.9 | I144: 0 | J144: 0.8
A145: Beauvais | B145: 2006-03-27 | C145: 38803 | D145: 27 | E145: 3 | F145: 2006 | G145: 12.4 | H145: 17.6 | I145: 5 | J145: 0
A146: Beauvais | B146: 2006-03-28 | C146: 38804 | D146: 28 | E146: 3 | F146: 2006 | G146: 7.6 | H146: 11.5 | I146: 3 | J146: 3
A147: Beauvais | B147: 2006-03-29 | C147: 38805 | D147: 29 | E147: 3 | F147: 2006 | G147: 5 | H147: 13.7 | I147: 2 | J147: 8.6
A148: Beauvais | B148: 2006-03-30 | C148: 38806 | D148: 30 | E148: 3 | F148: 2006 | G148: 10.3 | H148: 15.6 | I148: 1 | J148: 4.4
A149: Beauvais | B149: 2006-03-31 | C149: 38807 | D149: 31 | E149: 3 | F149: 2006 | G149: 10.4 | H149: 16.3 | I149: 4 | J149: 1.8
A150: Beauvais | B150: 2006-04-01 | C150: 38808 | D150: 1 | E150: 4 | F150: 2006 | G150: 10.4 | H150: 16.2 | I150: 7 | J150: 2
A151: Beauvais | B151: 2006-04-02 | C151: 38809 | D151: 2 | E151: 4 | F151: 2006 | G151: 7.6 | H151: 14.6 | I151: 5 | J151: 1.2
A152: Beauvais | B152: 2006-04-03 | C152: 38810 | D152: 3 | E152: 4 | F152: 2006 | G152: 7.5 | H152: 13.1 | I152: 7 | J152: 0
A153: Beauvais | B153: 2006-04-04 | C153: 38811 | D153: 4 | E153: 4 | F153: 2006 | G153: -0.5 | H153: 9.8 | I153: 8 | J153: 0
A154: Beauvais | B154: 2006-04-05 | C154: 38812 | D154: 5 | E154: 4 | F154: 2006 | G154: 0.7 | H154: 9.3 | I154: 7 | J154: 0
A155: Beauvais | B155: 2006-04-06 | C155: 38813 | D155: 6 | E155: 4 | F155: 2006 | G155: -4.4 | H155: 11.9 | I155: 11 | J155: 0.2
A156: Beauvais | B156: 2006-04-07 | C156: 38814 | D156: 7 | E156: 4 | F156: 2006 | G156: -3.6 | H156: 13.1 | I156: 11 | J156: 0
A157: Beauvais | B157: 2006-04-08 | C157: 38815 | D157: 8 | E157: 4 | F157: 2006 | G157: -0.1 | H157: 12.6 | I157: 5 | J157: 0.8
A158: Beauvais | B158: 2006-04-09 | C158: 38816 | D158: 9 | E158: 4 | F158: 2006 | G158: -0.4 | H158: 11.4 | I158: 7 | J158: 0
A159: Beauvais | B159: 2006-04-10 | C159: 38817 | D159: 10 | E159: 4 | F159: 2006 | G159: -1.1 | H159: 10 | I159: 4 | J159: 0.2
A160: Beauvais | B160: 2006-04-11 | C160: 38818 | D160: 11 | E160: 4 | F160: 2006 | G160: -4 | H160: 10.8 | I160: 6 | J160: 1.2
A161: Beauvais | B161: 2006-04-12 | C161: 38819 | D161: 12 | E161: 4 | F161: 2006 | G161: 6.4 | H161: 13.5 | I161: 8 | J161: 0.2
A162: Beauvais | B162: 2006-04-13 | C162: 38820 | D162: 13 | E162: 4 | F162: 2006 | G162: 5.1 | H162: 13.6 | I162: 0 | J162: 0
A163: Beauvais | B163: 2006-04-14 | C163: 38821 | D163: 14 | E163: 4 | F163: 2006 | G163: 9.2 | H163: 16 | I163: 3 | J163: 0
A164: Beauvais | B164: 2006-04-15 | C164: 38822 | D164: 15 | E164: 4 | F164: 2006 | G164: 5.3 | H164: 13.9 | I164: 0 | J164: 7
A165: Beauvais | B165: 2006-04-16 | C165: 38823 | D165: 16 | E165: 4 | F165: 2006 | G165: 9.2 | H165: 14.3 | I165: 1 | J165: 0
A166: Beauvais | B166: 2006-04-17 | C166: 38824 | D166: 17 | E166: 4 | F166: 2006 | G166: 7.4 | H166: 14.9 | I166: 3 | J166: 0.2
A167: Beauvais | B167: 2006-04-18 | C167: 38825 | D167: 18 | E167: 4 | F167: 2006 | G167: 3 | H167: 13.6 | I167: 4 | J167: 0
A168: Beauvais | B168: 2006-04-19 | C168: 38826 | D168: 19 | E168: 4 | F168: 2006 | G168: 1.2 | H168: 15.7 | I168: 6 | J168: 0
A169: Beauvais | B169: 2006-04-20 | C169: 38827 | D169: 20 | E169: 4 | F169: 2006 | G169: 0.7 | H169: 16.1 | I169: 4 | J169: 0
A170: Beauvais | B170: 2006-04-21 | C170: 38828 | D170: 21 | E170: 4 | F170: 2006 | G170: 3.1 | H170: 20.9 | I170: 11 | J170: 0
A171: Beauvais | B171: 2006-04-22 | C171: 38829 | D171: 22 | E171: 4 | F171: 2006 | G171: 6.1 | H171: 17.2 | I171: 9 | J171: 0
A172: Beauvais | B172: 2006-04-23 | C172: 38830 | D172: 23 | E172: 4 | F172: 2006 | G172: 1.8 | H172: 19.1 | I172: 3 | J172: 5.2
A173: Beauvais | B173: 2006-04-24 | C173: 38831 | D173: 24 | E173: 4 | F173: 2006 | G173: 9.5 | H173: 18.8 | I173: 4 | J173: 0.2
A174: Beauvais | B174: 2006-04-25 | C174: 38832 | D174: 25 | E174: 4 | F174: 2006 | G174: 7.2 | H174: 16.8 | I174: 3 | J174: 0
A175: Beauvais | B175: 2006-04-26 | C175: 38833 | D175: 26 | E175: 4 | F175: 2006 | G175: 11.2 | H175: 18.2 | I175: 5 | J175: 1.2
A176: Beauvais | B176: 2006-04-27 | C176: 38834 | D176: 27 | E176: 4 | F176: 2006 | G176: 7.4 | H176: 15.3 | I176: 1 | J176: 0
A177: Beauvais | B177: 2006-04-28 | C177: 38835 | D177: 28 | E177: 4 | F177: 2006 | G177: 3.9 | H177: 15 | I177: 9 | J177: 0
A178: Beauvais | B178: 2006-04-29 | C178: 38836 | D178: 29 | E178: 4 | F178: 2006 | G178: -1.2 | H178: 11.5 | I178: 6 | J178: 0
A179: Beauvais | B179: 2006-04-30 | C179: 38837 | D179: 30 | E179: 4 | F179: 2006 | G179: 3.1 | H179: 11.5 | I179: 1 | J179: 3.4
A180: Beauvais | B180: 2006-05-01 | C180: 38838 | D180: 1 | E180: 5 | F180: 2006 | G180: 5.8 | H180: 13.1 | I180: 1 | J180: 2.6
A181: Beauvais | B181: 2006-05-02 | C181: 38839 | D181: 2 | E181: 5 | F181: 2006 | G181: 9.7 | H181: 20.8 | I181: 9 | J181: 0
A182: Beauvais | B182: 2006-05-03 | C182: 38840 | D182: 3 | E182: 5 | F182: 2006 | G182: 6.7 | H182: 25.4 | I182: 12 | J182: 0
A183: Beauvais | B183: 2006-05-04 | C183: 38841 | D183: 4 | E183: 5 | F183: 2006 | G183: 8.1 | H183: 23.8 | I183: 9 | J183: 0
A184: Beauvais | B184: 2006-05-05 | C184: 38842 | D184: 5 | E184: 5 | F184: 2006 | G184: 9.1 | H184: 18.7 | I184: 5 | J184: 0
A185: Beauvais | B185: 2006-05-06 | C185: 38843 | D185: 6 | E185: 5 | F185: 2006 | G185: 10.6 | H185: 18.6 | I185: 0 | J185: 17.2
A186: Beauvais | B186: 2006-05-07 | C186: 38844 | D186: 7 | E186: 5 | F186: 2006 | G186: 11 | H186: 16.8 | I186: 2 | J186: 9.6
A187: Beauvais | B187: 2006-05-08 | C187: 38845 | D187: 8 | E187: 5 | F187: 2006 | G187: 10 | H187: 17.6 | I187: 3 | J187: 4
A188: Beauvais | B188: 2006-05-09 | C188: 38846 | D188: 9 | E188: =MONTH(C188) -> 5 | F188: 2006 | G188: 8.7 | H188: 10.9 | I188: 0 | J188: 8.6
A189: Beauvais | B189: 2006-05-10 | C189: 38847 | D189: 10 | E189: 5 | F189: 2006 | G189: 6 | H189: 17.3 | I189: 3 | J189: 0.2
A190: Beauvais | B190: 2006-05-11 | C190: 38848 | D190: 11 | E190: 5 | F190: 2006 | G190: 6.3 | H190: 22.4 | I190: 13 | J190: 0
A191: Beauvais | B191: 2006-05-12 | C191: 38849 | D191: 12 | E191: 5 | F191: 2006 | G191: 6.6 | H191: 23.4 | I191: 7 | J191: 0
A192: Beauvais | B192: 2006-05-13 | C192: 38850 | D192: 13 | E192: 5 | F192: 2006 | G192: 8.5 | H192: 19.7 | I192: 9 | J192: 0
A193: Beauvais | B193: 2006-05-14 | C193: 38851 | D193: 14 | E193: 5 | F193: 2006 | G193: 6.4 | H193: 17.9 | I193: 3 | J193: 0
A194: Beauvais | B194: 2006-05-15 | C194: 38852 | D194: 15 | E194: 5 | F194: 2006 | G194: 9.1 | H194: 21.4 | I194: 1 | J194: 0
A195: Beauvais | B195: 2006-05-16 | C195: 38853 | D195: 16 | E195: 5 | F195: 2006 | G195: 12.3 | H195: 19.8 | I195: 1 | J195: 0.2
A196: Beauvais | B196: 2006-05-17 | C196: =B196 -> 38854 | D196: =DAY(C196) -> 17 | E196: 5 | F196: =YEAR(C196) -> 2006 | G196: 10.2 | H196: 19.7 | I196: 3 | J196: 0.6
A197: Beauvais | B197: 2006-05-18 | C197: 38855 | D197: 18 | E197: 5 | F197: 2006 | G197: 14 | H197: 20.5 | I197: 6 | J197: 1.6
A198: Beauvais | B198: 2006-05-19 | C198: 38856 | D198: 19 | E198: 5 | F198: 2006 | G198: 10.6 | H198: 16.6 | I198: 2 | J198: 10.2
A199: Beauvais | B199: 2006-05-20 | C199: 38857 | D199: 20 | E199: 5 | F199: 2006 | G199: 10.2 | H199: 15.3 | I199: 7 | J199: 4.8
A200: Beauvais | B200: 2006-05-21 | C200: 38858 | D200: 21 | E200: 5 | F200: 2006 | G200: 10.3 | H200: 18.4 | I200: 0 | J200: 6
... 4628 more rows

Sheet Tab_Graph
A2: Station : | C2: Date de début | D2: Date de fin
A3: Beauvais | C3: 2018-12-01 | D3: 2019-01-07
D4: Mois | E4: Année
C5: Du | D5: 2 | E5: 2013
C6: Au | D6: 2 | E6: 2014
C8: De | D8: 2011
C9: A | D9: 2015
B14: =IF($C$3<=$D$3,$C$3,NA()) -> 2018-12-01 | C14: =IF($C$3<=$D$3-1,$C$3+1,NA()) -> 2018-12-02 | D14: =IF($C$3<=$D$3-2,$C$3+2,NA()) -> 2018-12-03 | E14: =IF($C$3<=$D$3-3,$C$3+3,NA()) -> 2018-12-04 | F14: =IF($C$3<=$D$3-4,$C$3+4,NA()) -> 2018-12-05 | G14: =IF($C$3<=$D$3-5,$C$3+5,NA()) -> 2018-12-06 | H14: =IF($C$3<=$D$3-6,$C$3+6,NA()) -> 2018-12-07 | I14: =IF($C$3<=$D$3-7,$C$3+7,NA()) -> 2018-12-08 | J14: =IF($C$3<=$D$3-8,$C$3+8,NA()) -> 2018-12-09 | K14: =IF($C$3<=$D$3-9,$C$3+9,NA()) -> 2018-12-10 | L14: =IF($C$3<=$D$3-10,$C$3+10,NA()) -> 2018-12-11 | M14: =IF($C$3<=$D$3-11,$C$3+11,NA()) -> 2018-12-12 | N14: =IF($C$3<=$D$3-12,$C$3+12,NA()) -> 2018-12-13 | O14: =IF($C$3<=$D$3-13,$C$3+13,NA()) -> 2018-12-14 | P14: =IF($C$3<=$D$3-14,$C$3+14,NA()) -> 2018-12-15 | Q14: =IF($C$3<=$D$3-15,$C$3+15,NA()) -> 2018-12-16 | R14: =IF($C$3<=$D$3-16,$C$3+16,NA()) -> 2018-12-17 | S14: =IF($C$3<=$D$3-17,$C$3+17,NA()) -> 2018-12-18 | T14: =IF($C$3<=$D$3-18,$C$3+18,NA()) -> 2018-12-19 | U14: =IF($C$3<=$D$3-19,$C$3+19,NA()) -> 2018-12-20 | V14: =IF($C$3<=$D$3-20,$C$3+20,NA()) -> 2018-12-21 | W14: =IF($C$3<=$D$3-21,$C$3+21,NA()) -> 2018-12-22 | X14: =IF($C$3<=$D$3-22,$C$3+22,NA()) -> 2018-12-23 | Y14: =IF($C$3<=$D$3-23,$C$3+23,NA()) -> 2018-12-24 | Z14: =IF($C$3<=$D$3-24,$C$3+24,NA()) -> 2018-12-25 | AA14: =IF($C$3<=$D$3-25,$C$3+25,NA()) -> 2018-12-26 | AB14: =IF($C$3<=$D$3-26,$C$3+26,NA()) -> 2018-12-27 | AC14: =IF($C$3<=$D$3-27,$C$3+27,NA()) -> 2018-12-28 | AD14: =IF($C$3<=$D$3-28,$C$3+28,NA()) -> 2018-12-29 | AE14: =IF($C$3<=$D$3-29,$C$3+29,NA()) -> 2018-12-30 | AF14: =IF($C$3<=$D$3-30,$C$3+30,NA()) -> 2018-12-31 | AG14: =IF($C$3<=$D$3-31,$C$3+31,NA()) -> 2019-01-01 | AH14: =IF($C$3<=$D$3-32,$C$3+32,NA()) -> 2019-01-02 | AI14: =IF($C$3<=$D$3-33,$C$3+33,NA()) -> 2019-01-03 | AJ14: =IF($C$3<=$D$3-34,$C$3+34,NA()) -> 2019-01-04 | AK14: =IF($C$3<=$D$3-35,$C$3+35,NA()) -> 2019-01-05 | AL14: =IF($C$3<=$D$3-36,$C$3+36,NA()) -> 2019-01-06 | AM14: =IF($C$3<=$D$3-37,$C$3+37,NA()) -> 2019-01-07 | AN14: =IF($C$3<=$D$3-38,$C$3+38,NA()) ->  | AO14: =IF($C$3<=$D$3-39,$C$3+39,NA()) ->  | AP14: =IF($C$3<=$D$3-40,$C$3+40,NA()) ->  | AQ14: =IF($C$3<=$D$3-41,$C$3+41,NA()) ->  | AR14: =IF($C$3<=$D$3-42,$C$3+42,NA()) ->  | AS14: =IF($C$3<=$D$3-43,$C$3+43,NA()) ->  | AT14: =IF($C$3<=$D$3-44,$C$3+44,NA()) ->  | AU14: =IF($C$3<=$D$3-45,$C$3+45,NA()) ->  | AV14: =IF($C$3<=$D$3-46,$C$3+46,NA()) ->  | AW14: =IF($C$3<=$D$3-47,$C$3+47,NA()) ->  | AX14: =IF($C$3<=$D$3-48,$C$3+48,NA()) ->  | AY14: =IF($C$3<=$D$3-49,$C$3+49,NA()) ->  | AZ14: =IF($C$3<=$D$3-50,$C$3+50,NA()) ->  | BA14: =IF($C$3<=$D$3-51,$C$3+51,NA()) ->  | BB14: =IF($C$3<=$D$3-52,$C$3+52,NA()) ->  | BC14: =IF($C$3<=$D$3-53,$C$3+53,NA()) ->  | BD14: =IF($C$3<=$D$3-54,$C$3+54,NA()) ->  | BE14: =IF($C$3<=$D$3-55,$C$3+55,NA()) ->  | BF14: =IF($C$3<=$D$3-56,$C$3+56,NA()) ->  | BG14: =IF($C$3<=$D$3-57,$C$3+57,NA()) ->  | BH14: =IF($C$3<=$D$3-58,$C$3+58,NA()) ->  | BI14: =IF($C$3<=$D$3-58,$C$3+58,NA()) -> 
A15: T Min | B15: =IF(B14=0,NA(),SUMIFS(INDIRECT($A$3&"!$G:$G"),INDIRECT($A$3&"!$B:$B"),B14)) -> 3.4 | C15: =IF(C14=0,NA(),SUMIFS(INDIRECT($A$3&"!$G:$G"),INDIRECT($A$3&"!$B:$B"),C14)) -> 10.3 | D15: =IF(D14=0,NA(),SUMIFS(INDIRECT($A$3&"!$G:$G"),INDIRECT($A$3&"!$B:$B"),D14)) -> 12.2 | E15: 4.6 | F15: 5.6 | G15: 10.6 | H15: =IF(H14=0,NA(),SUMIFS(INDIRECT($A$3&"!$G:$G"),INDIRECT($A$3&"!$B:$B"),14)) -> 0 | I15: 6.3 | J15: 7.6 | K15: 5.9 | L15: 1.5 | M15: -1.2 | N15: -1.9 | O15: -3.9 | P15: -3.6 | Q15: 0.2 | R15: 4.4 | S15: 4.7 | T15: 6.6 | U15: 5.8 | V15: 8.1 | W15: 9.1 | X15: 8.1 | Y15: 2.4 | Z15: -3.9 | AA15: -4.7 | AB15: -2.4 | AC15: -1.7 | AD15: 2.6 | AE15: 3.8 | AF15: 7.3 | AG15: 7.2 | AH15: =IF(A14=0,NA(),SUMIFS(INDIRECT($A$3&"!$G:$G"),INDIRECT($A$3&"!$B:$B"),A14)) ->  | AI15: 2.2 | AJ15: -1.4 | AK15: 2.1 | AL15: 3.1 | AM15: 4.7 | BH15: =IF(B14=0,NA(),SUMIFS(INDIRECT($A$3&"!$G:$G"),INDIRECT($A$3&"!$B:$B"),B14)) -> 3.4
A16: T Max | B16: =IF(B14=0,NA(),SUMIFS(INDIRECT($A$3&"!$H:$H"),INDIRECT($A$3&"!$B:$B"),B14)) -> 13.4 | C16: 15 | D16: 14.2 | E16: 10.6 | F16: 12.1 | G16: 12.8 | H16: =IF(H14=0,NA(),SUMIFS(INDIRECT($A$3&"!$H:$H"),INDIRECT($A$3&"!$B:$B"),H14)) -> 12.3 | I16: 11.5 | J16: 11.2 | K16: 10.2 | L16: 8.5 | M16: 2 | N16: 3.4 | O16: 1.2 | P16: 3.5 | Q16: 7 | R16: 9.6 | S16: 8.3 | T16: 10.6 | U16: 12 | V16: 14.8 | W16: 11.8 | X16: 13.3 | Y16: 8.7 | Z16: 5.3 | AA16: 2.5 | AB16: 1.5 | AC16: 3.1 | AD16: 8.8 | AE16: 10.2 | AF16: 9.8 | AG16: 8.7 | AH16: 6.8 | AI16: 6.1 | AJ16: 5.8 | AK16: 5.5 | AL16: 5.9 | AM16: 9.3 | BI16: =IF(BI14=0,NA(),SUMIFS(INDIRECT($A$3&"!$H:$H"),INDIRECT($A$3&"!$B:$B"),BI14)) -> 
A17: Ensoleillement | B17: =IF(B14=0,NA(),SUMIFS(INDIRECT($A$3&"!$I:$I"),INDIRECT($A$3&"!$B:$B"),B14)) -> 0 | C17: =IF(C14=0,NA(),SUMIFS(INDIRECT($A$3&"!$I:$I"),INDIRECT($A$3&"!$B:$B"),C14)) -> 0 | D17: 0 | E17: 5 | F17: 0 | G17: 0 | H17: 0 | I17: 1 | J17: 1 | K17: 3 | L17: 4 | M17: 1 | N17: 6 | O17: 5 | P17: 0 | Q17: 0 | R17: 6 | S17: 2 | T17: 2 | U17: 4 | V17: 0 | W17: 0 | X17: 0 | Y17: 0 | Z17: 6 | AA17: 4 | AB17: 1 | AC17: 0 | AD17: 0 | AE17: 0 | AF17: 0 | AG17: 0 | AH17: 0 | AI17: 0 | AJ17: 0 | AK17: 0 | AL17: 0 | AM17: 0 | BI17: =IF(BI14=0,NA(),SUMIFS(INDIRECT($A$3&"!$I:$I"),INDIRECT($A$3&"!$B:$B"),BI14)) -> 
A18: Pluviométrie | B18: =IF(B14=0,NA(),SUMIFS(INDIRECT($A$3&"!$J:$J"),INDIRECT($A$3&"!$B:$B"),B14)) -> 10.2 | C18: =IF(C14=0,NA(),SUMIFS(INDIRECT($A$3&"!$J:$J"),INDIRECT($A$3&"!$B:$B"),C14)) -> 16.2 | D18: 3 | E18: 0 | F18: 2.8 | G18: 0.2 | H18: 6.6 | I18: 8 | J18: 14.5 | K18: 0.8 | L18: 0 | M18: 0 | N18: 0 | O18: 0 | P18: 9.3 | Q18: 2.2 | R18: 0 | S18: 3 | T18: 1.6 | U18: 4.6 | V18: 0.8 | W18: 2.4 | X18: 9.3 | Y18: 0 | Z18: 0 | AA18: 0 | AB18: 0 | AC18: 0 | AD18: 0 | AE18: 0.2 | AF18: 0 | AG18: 0.2 | AH18: 0 | AI18: 0 | AJ18: 0 | AK18: 0 | AL18: 0 | AM18: 0 | BI18: =IF(BI14=0,NA(),SUMIFS(INDIRECT($A$3&"!$J:$J"),INDIRECT($A$3&"!$B:$B"),BI14)) -> 
A19: T Moyenne | B19: =AVERAGE(B15:B16) -> 8.4 | C19: =AVERAGE(C15:C16) -> 12.7 | D19: =AVERAGE(D15:D16) -> 13.2 | E19: =AVERAGE(E15:E16) -> 7.6 | F19: 8.9 | G19: 11.7 | H19: 6.2 | I19: 8.9 | J19: 9.4 | K19: 8.1 | L19: 5.0 | M19: 0.4 | N19: 0.8 | O19: -1.4 | P19: -0.1 | Q19: 3.6 | R19: 7.0 | S19: 6.5 | T19: 8.6 | U19: 8.9 | V19: 11.5 | W19: 10.5 | X19: 10.7 | Y19: 5.6 | Z19: 0.7 | AA19: -1.1 | AB19: -0.5 | AC19: 0.7 | AD19: 5.7 | AE19: 7.0 | AF19: 8.6 | AG19: 8.0 | AI19: 4.2 | AJ19: 2.2 | AK19: 3.8 | AL19: 4.5 | AM19: 7.0
A20: Cumul des pluies | B20: =IF(B14="",NA(),B18) -> 10.2 | C20: =IF(C14="",NA(),B20+C18) -> 26.4 | D20: =IF(D14="",NA(),C20+D18) -> 29.4 | E20: 29.4 | F20: 32.2 | G20: 32.4 | H20: 39.0 | I20: 47.0 | J20: 61.5 | K20: 62.3 | L20: 62.3 | M20: 62.3 | N20: 62.3 | O20: 62.3 | P20: 71.6 | Q20: 73.8 | R20: 73.8 | S20: 76.8 | T20: 78.4 | U20: 83.0 | V20: 83.8 | W20: 86.2 | X20: 95.5 | Y20: 95.5 | Z20: 95.5 | AA20: 95.5 | AB20: 95.5 | AC20: 95.5 | AD20: 95.5 | AE20: 95.7 | AF20: 95.7 | AG20: 95.9 | AH20: 95.9 | AI20: 95.9 | AJ20: 95.9 | AK20: 95.9 | AL20: 95.9 | AM20: 95.9
A21: Cumul de l'ensoleillement | B21: =IF(B14="",NA(),B17) -> 0.0 | C21: =IF(C14="",NA(),B21+C17) -> 0.0 | D21: =IF(D14="",NA(),C21+D17) -> 0.0 | E21: =IF(E14="",NA(),D21+E17) -> 5.0 | F21: =IF(F14="",NA(),E21+F17) -> 5.0 | G21: 5.0 | H21: 5.0 | I21: 6.0 | J21: 7.0 | K21: 10.0 | L21: 14.0 | M21: 15.0 | N21: 21.0 | O21: 26.0 | P21: 26.0 | Q21: 26.0 | R21: 32.0 | S21: 34.0 | T21: 36.0 | U21: 40.0 | V21: 40.0 | W21: 40.0 | X21: 40.0 | Y21: 40.0 | Z21: 46.0 | AA21: 50.0 | AB21: 51.0 | AC21: 51.0 | AD21: 51.0 | AE21: 51.0 | AF21: 51.0 | AG21: 51.0 | AH21: 51.0 | AI21: 51.0 | AJ21: 51.0 | AK21: 51.0 | AL21: 51.0 | AM21: 51.0
A22: Normal T Min sur 10 ans | B22: =IF(B14=0,"NA",AVERAGE(SUMIFS(INDIRECT($A$3&"!$G:$G"),INDIRECT($A$3&"!$B:$B"),DATE(YEAR(B14),MONTH(B14),DAY(B14))),SUMIFS(INDIRECT($A$3&"!$G:$G"),INDIRECT($A$3&"!$B:$B"),DATE(YEAR(B14)-1,MONTH(B14),DAY(B14))),SUMIFS(INDIRECT($A$3&"!$G:$G"),INDIRECT($A$3&"!$B:$B"),DATE(YEAR(B14)-2,MONTH(B14),DAY(B14))),SUMIFS(INDIRECT($A$3&"!$G:$G"),INDIRECT($A$3&"!$B:$B"),DATE(YEAR(B14)-3,MONTH(B14),DAY(B14))),SUMIFS(INDIRECT($A$3&"!$G:$G"),INDIRECT($A$3&"!$B:$B"),DATE(YEAR(B14)-4,MONTH(B14),DAY(B14))),SUMIFS(INDIRECT($A$3&"!$G:$G"),INDIRECT($A$3&"!$B:$B"),DATE(YEAR(B14)-5,MONTH(B14),DAY(B14))),SUMIFS(INDIRECT($A$3&"!$G:$G"),INDIRECT($A$3&"!$B:$B"),DATE(YEAR(B14)-6,MONTH(B14),DAY(B14))),SUMIFS(INDIRECT($A$3&"!$G:$G"),INDIRECT($A$3&"!$B:$B"),DATE(YEAR(B14)-7,MONTH(B14),DAY(B14))),SUMIFS(INDIRECT($A$3&"!$G:$G"),INDIRECT($A$3&"!$B:$B"),DATE(YEAR(B14)-8,MONTH(B14),DAY(B14))),SUMIFS(INDIRECT($A$3&"!$G:$G"),INDIRECT($A$3&"!$B:$B"),DATE(YEAR(B14)-9,MONTH(B14),DAY(B14))))) -> 1.1 | C22: 1.8 | D22: 1.0 | E22: 1.0 | F22: 1.5 | G22: 2.5 | H22: 2.1 | I22: 2.1 | J22: 0.6 | K22: 1.1 | L22: 0.9 | M22: 1.2 | N22: 0.2 | O22: -0.2 | P22: 0.5 | Q22: 2.3 | R22: 1.6 | S22: 1.7 | T22: 1.0 | U22: 2.0 | V22: 3.1 | W22: 6.0 | X22: 5.4 | Y22: 4.7 | Z22: 2.8 | AA22: 1.6 | AB22: 1.4 | AC22: -0.4 | AD22: 1.1 | AE22: 2.4 | AF22: 3.7 | AG22: 1.9 | AH22: =IF(AH14=0,"NA",AVERAGE(SUMIFS(INDIRECT($A$3&"!$G:$G"),INDIRECT($A$3&"!$B:$B"),DATE(YEAR(AH14),MONTH(AH14),DAY(AH14))),SUMIFS(INDIRECT($A$3&"!$G:$G"),INDIRECT($A$3&"!$B:$B"),DATE(YEAR(AH14)-1,MONTH(AH14),DAY(AH14))),SUMIFS(INDIRECT($A$3&"!$G:$G"),INDIRECT($A$3&"!$B:$B"),DATE(YEAR(AH14)-2,MONTH(AH14),DAY(AH14))),SUMIFS(INDIRECT($A$3&"!$G:$G"),INDIRECT($A$3&"!$B:$B"),DATE(YEAR(AH14)-3,MONTH(AH14),DAY(AH14))),SUMIFS(INDIRECT($A$3&"!$G:$G"),INDIRECT($A$3&"!$B:$B"),DATE(YEAR(AH14)-4,MONTH(AH14),DAY(AH14))),SUMIFS(INDIRECT($A$3&"!$G:$G"),INDIRECT($A$3&"!$B:$B"),DATE(YEAR(AH14)-5,MONTH(AH14),DAY(AH14))),SUMIFS(INDIRECT($A$3&"!$G:$G"),INDIRECT($A$3&"!$B:$B"),DATE(YEAR(AH14)-6,MONTH(AH14),DAY(AH14))),SUMIFS(INDIRECT($A$3&"!$G:$G"),INDIRECT($A$3&"!$B:$B"),DATE(YEAR(AH14)-7,MONTH(AH14),DAY(AH14))),SUMIFS(INDIRECT($A$3&"!$G:$G"),INDIRECT($A$3&"!$B:$B"),DATE(YEAR(AH14)-8,MONTH(AH14),DAY(AH14))),SUMIFS(INDIRECT($A$3&"!$G:$G"),INDIRECT($A$3&"!$B:$B"),DATE(YEAR(AH14)-9,MONTH(AH14),DAY(AH14))))) -> 2.3 | AI22: 1.6 | AJ22: 2.2 | AK22: 1.5 | AL22: 1.7 | AM22: 2.4
A23: Normal T Max sur 10 ans | B23: =IF(B14=0,"NA",AVERAGE(SUMIFS(INDIRECT($A$3&"!$H:$H"),INDIRECT($A$3&"!$B:$B"),DATE(YEAR(B14),MONTH(B14),DAY(B14))),SUMIFS(INDIRECT($A$3&"!$H:$H"),INDIRECT($A$3&"!$B:$B"),DATE(YEAR(B14)-1,MONTH(B14),DAY(B14))),SUMIFS(INDIRECT($A$3&"!$H:$H"),INDIRECT($A$3&"!$B:$B"),DATE(YEAR(B14)-2,MONTH(B14),DAY(B14))),SUMIFS(INDIRECT($A$3&"!$H:$H"),INDIRECT($A$3&"!$B:$B"),DATE(YEAR(B14)-3,MONTH(B14),DAY(B14))),SUMIFS(INDIRECT($A$3&"!$H:$H"),INDIRECT($A$3&"!$B:$B"),DATE(YEAR(B14)-4,MONTH(B14),DAY(B14))),SUMIFS(INDIRECT($A$3&"!$H:$H"),INDIRECT($A$3&"!$B:$B"),DATE(YEAR(B14)-5,MONTH(B14),DAY(B14))),SUMIFS(INDIRECT($A$3&"!$H:$H"),INDIRECT($A$3&"!$B:$B"),DATE(YEAR(B14)-6,MONTH(B14),DAY(B14))),SUMIFS(INDIRECT($A$3&"!$H:$H"),INDIRECT($A$3&"!$B:$B"),DATE(YEAR(B14)-7,MONTH(B14),DAY(B14))),SUMIFS(INDIRECT($A$3&"!$H:$H"),INDIRECT($A$3&"!$B:$B"),DATE(YEAR(B14)-8,MONTH(B14),DAY(B14))),SUMIFS(INDIRECT($A$3&"!$H:$H"),INDIRECT($A$3&"!$B:$B"),DATE(YEAR(B14)-9,MONTH(B14),DAY(B14))))) -> 7.5 | C23: 6.8 | D23: 7.3 | E23: 7.6 | F23: 7.5 | G23: 8.3 | H23: 8.4 | I23: 8.0 | J23: 8.7 | K23: 8.3 | L23: 8.1 | M23: 6.4 | N23: 6.0 | O23: 5.7 | P23: 7.3 | Q23: 8.4 | R23: 7.9 | S23: 6.9 | T23: 7.8 | U23: 8.2 | V23: 8.7 | W23: 9.4 | X23: 9.1 | Y23: 8.7 | Z23: 7.9 | AA23: 8.1 | AB23: 6.7 | AC23: 6.0 | AD23: 8.0 | AE23: 8.0 | AF23: 7.8 | AG23: 7.0 | AH23: =IF(AH14=0,"NA",AVERAGE(SUMIFS(INDIRECT($A$3&"!$H:$H"),INDIRECT($A$3&"!$B:$B"),DATE(YEAR(AH14),MONTH(AH14),DAY(AH14))),SUMIFS(INDIRECT($A$3&"!$H:$H"),INDIRECT($A$3&"!$B:$B"),DATE(YEAR(AH14)-1,MONTH(AH14),DAY(AH14))),SUMIFS(INDIRECT($A$3&"!$H:$H"),INDIRECT($A$3&"!$B:$B"),DATE(YEAR(AH14)-2,MONTH(AH14),DAY(AH14))),SUMIFS(INDIRECT($A$3&"!$H:$H"),INDIRECT($A$3&"!$B:$B"),DATE(YEAR(AH14)-3,MONTH(AH14),DAY(AH14))),SUMIFS(INDIRECT($A$3&"!$H:$H"),INDIRECT($A$3&"!$B:$B"),DATE(YEAR(AH14)-4,MONTH(AH14),DAY(AH14))),SUMIFS(INDIRECT($A$3&"!$H:$H"),INDIRECT($A$3&"!$B:$B"),DATE(YEAR(AH14)-5,MONTH(AH14),DAY(AH14))),SUMIFS(INDIRECT($A$3&"!$H:$H"),INDIRECT($A$3&"!$B:$B"),DATE(YEAR(AH14)-6,MONTH(AH14),DAY(AH14))),SUMIFS(INDIRECT($A$3&"!$H:$H"),INDIRECT($A$3&"!$B:$B"),DATE(YEAR(AH14)-7,MONTH(AH14),DAY(AH14))),SUMIFS(INDIRECT($A$3&"!$H:$H"),INDIRECT($A$3&"!$B:$B"),DATE(YEAR(AH14)-8,MONTH(AH14),DAY(AH14))),SUMIFS(INDIRECT($A$3&"!$H:$H"),INDIRECT($A$3&"!$B:$B"),DATE(YEAR(AH14)-9,MONTH(AH14),DAY(AH14))))) -> 8.0 | AI23: 8.0 | AJ23: 7.3 | AK23: 7.4 | AL23: 6.9 | AM23: 8.0
A24: Normal Ensoleillement sur 10 ans | B24: =IF(B14=0,"NA",AVERAGE(SUMIFS(INDIRECT($A$3&"!$I:$I"),INDIRECT($A$3&"!$B:$B"),DATE(YEAR(B14),MONTH(B14),DAY(B14))),SUMIFS(INDIRECT($A$3&"!$I:$I"),INDIRECT($A$3&"!$B:$B"),DATE(YEAR(B14)-1,MONTH(B14),DAY(B14))),SUMIFS(INDIRECT($A$3&"!$I:$I"),INDIRECT($A$3&"!$B:$B"),DATE(YEAR(B14)-2,MONTH(B14),DAY(B14))),SUMIFS(INDIRECT($A$3&"!$I:$I"),INDIRECT($A$3&"!$B:$B"),DATE(YEAR(B14)-3,MONTH(B14),DAY(B14))),SUMIFS(INDIRECT($A$3&"!$I:$I"),INDIRECT($A$3&"!$B:$B"),DATE(YEAR(B14)-4,MONTH(B14),DAY(B14))),SUMIFS(INDIRECT($A$3&"!$I:$I"),INDIRECT($A$3&"!$B:$B"),DATE(YEAR(B14)-5,MONTH(B14),DAY(B14))),SUMIFS(INDIRECT($A$3&"!$I:$I"),INDIRECT($A$3&"!$B:$B"),DATE(YEAR(B14)-6,MONTH(B14),DAY(B14))),SUMIFS(INDIRECT($A$3&"!$I:$I"),INDIRECT($A$3&"!$B:$B"),DATE(YEAR(B14)-7,MONTH(B14),DAY(B14))),SUMIFS(INDIRECT($A$3&"!$I:$I"),INDIRECT($A$3&"!$B:$B"),DATE(YEAR(B14)-8,MONTH(B14),DAY(B14))),SUMIFS(INDIRECT($A$3&"!$I:$I"),INDIRECT($A$3&"!$B:$B"),DATE(YEAR(B14)-9,MONTH(B14),DAY(B14))))) -> 1.9 | C24: 1.2 | D24: 0.7 | E24: 2.5 | F24: 2.1 | G24: 2.1 | H24: 1.1 | I24: 1.8 | J24: 3.7 | K24: 1.9 | L24: 2.9 | M24: 3.0 | N24: 2.1 | O24: 3.4 | P24: 2.0 | Q24: 2.7 | R24: 2.5 | S24: 2.0 | T24: 1.3 | U24: 2.3 | V24: 0.6 | W24: 0.3 | X24: 0.8 | Y24: 0.8 | Z24: 2.2 | AA24: 3.1 | AB24: 1.5 | AC24: 2.7 | AD24: 1.7 | AE24: 1.1 | AF24: 1.2 | AG24: 1.2 | AH24: =IF(AH14=0,"NA",AVERAGE(SUMIFS(INDIRECT($A$3&"!$I:$I"),INDIRECT($A$3&"!$B:$B"),DATE(YEAR(AH14),MONTH(AH14),DAY(AH14))),SUMIFS(INDIRECT($A$3&"!$I:$I"),INDIRECT($A$3&"!$B:$B"),DATE(YEAR(AH14)-1,MONTH(AH14),DAY(AH14))),SUMIFS(INDIRECT($A$3&"!$I:$I"),INDIRECT($A$3&"!$B:$B"),DATE(YEAR(AH14)-2,MONTH(AH14),DAY(AH14))),SUMIFS(INDIRECT($A$3&"!$I:$I"),INDIRECT($A$3&"!$B:$B"),DATE(YEAR(AH14)-3,MONTH(AH14),DAY(AH14))),SUMIFS(INDIRECT($A$3&"!$I:$I"),INDIRECT($A$3&"!$B:$B"),DATE(YEAR(AH14)-4,MONTH(AH14),DAY(AH14))),SUMIFS(INDIRECT($A$3&"!$I:$I"),INDIRECT($A$3&"!$B:$B"),DATE(YEAR(AH14)-5,MONTH(AH14),DAY(AH14))),SUMIFS(INDIRECT($A$3&"!$I:$I"),INDIRECT($A$3&"!$B:$B"),DATE(YEAR(AH14)-6,MONTH(AH14),DAY(AH14))),SUMIFS(INDIRECT($A$3&"!$I:$I"),INDIRECT($A$3&"!$B:$B"),DATE(YEAR(AH14)-7,MONTH(AH14),DAY(AH14))),SUMIFS(INDIRECT($A$3&"!$I:$I"),INDIRECT($A$3&"!$B:$B"),DATE(YEAR(AH14)-8,MONTH(AH14),DAY(AH14))),SUMIFS(INDIRECT($A$3&"!$I:$I"),INDIRECT($A$3&"!$B:$B"),DATE(YEAR(AH14)-9,MONTH(AH14),DAY(AH14))))) -> 2.1 | AI24: 0.9 | AJ24: 2.0 | AK24: 1.7 | AL24: 1.6 | AM24: 1.2
A25: Normal Pluviométrie sur 10 ans | B25: =IF(B14=0,"NA",AVERAGE(SUMIFS(INDIRECT($A$3&"!$J:$J"),INDIRECT($A$3&"!$B:$B"),DATE(YEAR(B14),MONTH(B14),DAY(B14))),SUMIFS(INDIRECT($A$3&"!$J:$J"),INDIRECT($A$3&"!$B:$B"),DATE(YEAR(B14)-1,MONTH(B14),DAY(B14))),SUMIFS(INDIRECT($A$3&"!$J:$J"),INDIRECT($A$3&"!$B:$B"),DATE(YEAR(B14)-2,MONTH(B14),DAY(B14))),SUMIFS(INDIRECT($A$3&"!$J:$J"),INDIRECT($A$3&"!$B:$B"),DATE(YEAR(B14)-3,MONTH(B14),DAY(B14))),SUMIFS(INDIRECT($A$3&"!$J:$J"),INDIRECT($A$3&"!$B:$B"),DATE(YEAR(B14)-4,MONTH(B14),DAY(B14))),SUMIFS(INDIRECT($A$3&"!$J:$J"),INDIRECT($A$3&"!$B:$B"),DATE(YEAR(B14)-5,MONTH(B14),DAY(B14))),SUMIFS(INDIRECT($A$3&"!$J:$J"),INDIRECT($A$3&"!$B:$B"),DATE(YEAR(B14)-6,MONTH(B14),DAY(B14))),SUMIFS(INDIRECT($A$3&"!$J:$J"),INDIRECT($A$3&"!$B:$B"),DATE(YEAR(B14)-7,MONTH(B14),DAY(B14))),SUMIFS(INDIRECT($A$3&"!$J:$J"),INDIRECT($A$3&"!$B:$B"),DATE(YEAR(B14)-8,MONTH(B14),DAY(B14))),SUMIFS(INDIRECT($A$3&"!$J:$J"),INDIRECT($A$3&"!$B:$B"),DATE(YEAR(B14)-9,MONTH(B14),DAY(B14))))) -> 2.0 | C25: 2.7 | D25: 2.5 | E25: 3.8 | F25: 2.2 | G25: 1.6 | H25: 2.8 | I25: 2.3 | J25: 2.5 | K25: 2.0 | L25: 2.1 | M25: 3.0 | N25: 3.1 | O25: 1.5 | P25: 6.4 | Q25: 2.8 | R25: 2.7 | S25: 2.0 | T25: 3.3 | U25: 1.9 | V25: 2.1 | W25: 3.0 | X25: 1.7 | Y25: 3.6 | Z25: 1.6 | AA25: 2.0 | AB25: 4.5 | AC25: 0.3 | AD25: 2.5 | AE25: 2.1 | AF25: 1.4 | AG25: 2.2 | AH25: =IF(AH14=0,"NA",AVERAGE(SUMIFS(INDIRECT($A$3&"!$J:$J"),INDIRECT($A$3&"!$B:$B"),DATE(YEAR(AH14),MONTH(AH14),DAY(AH14))),SUMIFS(INDIRECT($A$3&"!$J:$J"),INDIRECT($A$3&"!$B:$B"),DATE(YEAR(AH14)-1,MONTH(AH14),DAY(AH14))),SUMIFS(INDIRECT($A$3&"!$J:$J"),INDIRECT($A$3&"!$B:$B"),DATE(YEAR(AH14)-2,MONTH(AH14),DAY(AH14))),SUMIFS(INDIRECT($A$3&"!$J:$J"),INDIRECT($A$3&"!$B:$B"),DATE(YEAR(AH14)-3,MONTH(AH14),DAY(AH14))),SUMIFS(INDIRECT($A$3&"!$J:$J"),INDIRECT($A$3&"!$B:$B"),DATE(YEAR(AH14)-4,MONTH(AH14),DAY(AH14))),SUMIFS(INDIRECT($A$3&"!$J:$J"),INDIRECT($A$3&"!$B:$B"),DATE(YEAR(AH14)-5,MONTH(AH14),DAY(AH14))),SUMIFS(INDIRECT($A$3&"!$J:$J"),INDIRECT($A$3&"!$B:$B"),DATE(YEAR(AH14)-6,MONTH(AH14),DAY(AH14))),SUMIFS(INDIRECT($A$3&"!$J:$J"),INDIRECT($A$3&"!$B:$B"),DATE(YEAR(AH14)-7,MONTH(AH14),DAY(AH14))),SUMIFS(INDIRECT($A$3&"!$J:$J"),INDIRECT($A$3&"!$B:$B"),DATE(YEAR(AH14)-8,MONTH(AH14),DAY(AH14))),SUMIFS(INDIRECT($A$3&"!$J:$J"),INDIRECT($A$3&"!$B:$B"),DATE(YEAR(AH14)-9,MONTH(AH14),DAY(AH14))))) -> 1.5 | AI25: 2.5 | AJ25: 1.7 | AK25: 0.8 | AL25: 0.7 | AM25: 1.3
A26: Normal T Moyenne sur 10 ans | B26: =+AVERAGE(B22:B23) -> 4.3 | C26: =+AVERAGE(C22:C23) -> 4.3 | D26: =+AVERAGE(D22:D23) -> 4.1 | E26: =+AVERAGE(E22:E23) -> 4.3 | F26: 4.5 | G26: 5.4 | H26: 5.2 | I26: 5.0 | J26: 4.6 | K26: 4.7 | L26: 4.5 | M26: 3.8 | N26: 3.1 | O26: 2.8 | P26: 3.9 | Q26: 5.4 | R26: 4.8 | S26: 4.3 | T26: 4.4 | U26: 5.1 | V26: 5.9 | W26: 7.7 | X26: 7.3 | Y26: 6.7 | Z26: 5.3 | AA26: 4.9 | AB26: 4.1 | AC26: 2.8 | AD26: 4.6 | AE26: 5.2 | AF26: 5.7 | AG26: 4.4 | AH26: 5.1 | AI26: 4.8 | AJ26: 4.8 | AK26: 4.4 | AL26: 4.3 | AM26: 5.2
A27: Cumul des pluies Normal | B27: =IF(B14="",NA(),B25) -> 2.0 | C27: =IF(C14="",NA(),B27+C25) -> 4.6 | D27: =IF(D14="",NA(),C27+D25) -> 7.2 | E27: =IF(E14="",NA(),D27+E25) -> 11.0 | F27: =IF(F14="",NA(),E27+F25) -> 13.2 | G27: 14.8 | H27: 17.6 | I27: 20.0 | J27: 22.4 | K27: 24.5 | L27: 26.6 | M27: 29.6 | N27: 32.7 | O27: 34.2 | P27: 40.5 | Q27: 43.3 | R27: 45.9 | S27: 47.9 | T27: 51.2 | U27: 53.1 | V27: 55.2 | W27: 58.2 | X27: 59.8 | Y27: 63.4 | Z27: 65.0 | AA27: 67.0 | AB27: 71.5 | AC27: 71.9 | AD27: 74.3 | AE27: 76.5 | AF27: 77.9 | AG27: 80.1 | AH27: 81.6 | AI27: 84.0 | AJ27: 85.7 | AK27: 86.5 | AL27: 87.2 | AM27: 88.6
A28: Cumul de l'ensoleillement Normal | B28: =IF(B14="",NA(),B24) -> 1.9 | C28: =IF(C14="",NA(),B28+C24) -> 3.1 | D28: =IF(D14="",NA(),C28+D24) -> 3.8 | E28: 6.3 | F28: 8.4 | G28: 10.5 | H28: 11.6 | I28: 13.4 | J28: 17.1 | K28: 19.0 | L28: 21.9 | M28: 24.9 | N28: 27.0 | O28: 30.4 | P28: 32.4 | Q28: 35.1 | R28: 37.6 | S28: 39.6 | T28: 40.9 | U28: 43.2 | V28: 43.8 | W28: 44.1 | X28: 44.9 | Y28: 45.7 | Z28: 47.9 | AA28: 51.0 | AB28: 52.5 | AC28: 55.2 | AD28: 56.9 | AE28: 58.0 | AF28: 59.2 | AG28: 60.4 | AH28: 62.5 | AI28: 63.4 | AJ28: 65.4 | AK28: 67.1 | AL28: 68.7 | AM28: 69.9
A32: =TEXT(C3,"jj/mm/aa") -> 01/12/18
A33: =TEXT(D3,"jj/mm/aa") -> 07/01/19
C36: =CONCATENATE("Température à ",A3," du ",A32," au ",A33) -> Température à Beauvais du 01/12/18 au 07/01/19 | X36: =CONCATENATE("Ensoleillement à ",A3," du ",A32," au ",A33) -> Ensoleillement à Beauvais du 01/12/18 au 07/01/19
O37: =CONCATENATE("Pluviométrie à ",A3," du ",A32," au ",A33) -> Pluviométrie à Beauvais du 01/12/18 au 07/01/19
A41: 10 | B41: =RIGHT(E6,2) -> 14
A42: =DATE(E5,D5,A41) -> 2013-02-10
A43: =DATE(E6,D6,A41) -> 2014-02-10
B48: =IF(EDATE(A42,0)<EDATE(A43,0),EDATE(A42,0),NA()) -> 2013-02-10 | C48: =IF(EDATE(A42,1)<EDATE(A43,0),EDATE(A42,1),NA()) -> 2013-03-10 | D48: =IF(EDATE(A42,2)<EDATE(A43,0),EDATE(A42,2),NA()) -> 2013-04-10 | E48: =IF(EDATE(A42,3)<EDATE(A43,0),EDATE(A42,3),NA()) -> 2013-05-10 | F48: =IF(EDATE(A42,4)<EDATE(A43,0),EDATE(A42,4),NA()) -> 2013-06-10 | G48: =IF(EDATE(A42,5)<EDATE(A43,0),EDATE(A42,5),NA()) -> 2013-07-10 | H48: =IF(EDATE(A42,6)<EDATE(A43,0),EDATE(A42,6),NA()) -> 2013-08-10 | I48: =IF(EDATE(A42,7)<EDATE(A43,0),EDATE(A42,7),NA()) -> 2013-09-10 | J48: =IF(EDATE(A42,8)<EDATE(A43,0),EDATE(A42,8),NA()) -> 2013-10-10 | K48: =IF(EDATE(A42,9)<EDATE(A43,0),EDATE(A42,9),NA()) -> 2013-11-10 | L48: =IF(EDATE(A42,10)<EDATE(A43,0),EDATE(A42,10),NA()) -> 2013-12-10 | M48: =IF(EDATE(A42,11)<EDATE(A43,0),EDATE(A42,11),NA()) -> 2014-01-10 | N48: =IF(EDATE(A42,12)<EDATE(A43,0),EDATE(A42,12),NA()) ->  | O48: =IF(EDATE(A42,13)<EDATE(A43,0),EDATE(A42,13),NA()) ->  | P48: =IF(EDATE(A42,14)<EDATE(A43,0),EDATE(A42,14),NA()) ->  | Q48: =IF(EDATE(A42,15)<EDATE(A43,0),EDATE(A42,15),NA()) ->  | R48: =IF(EDATE(A42,16)<EDATE(A43,0),EDATE(A42,16),NA()) ->  | S48: =IF(EDATE(A42,17)<EDATE(A43,0),EDATE(A42,17),NA()) ->  | T48: =IF(EDATE(A42,18)<EDATE(A43,0),EDATE(A42,18),NA()) ->  | U48: =IF(EDATE(A42,19)<EDATE(A43,0),EDATE(A42,19),NA()) ->  | V48: =IF(EDATE(A42,20)<EDATE(A43,0),EDATE(A42,20),NA()) ->  | W48: =IF(EDATE(A42,21)<EDATE(A43,0),EDATE(A42,21),NA()) ->  | X48: =IF(EDATE(A42,22)<=EDATE(A43,0),EDATE(A42,22),NA()) ->  | Y48: =IF(EDATE(A42,23)<=EDATE(A43,0),EDATE(A42,23),NA()) ->  | Z48: =IF(EDATE(A42,24)<=EDATE(A43,0),EDATE(A42,24),NA()) ->  | AA48: =IF(EDATE(A42,25)<=EDATE(A43,0),EDATE(A42,25),NA()) ->  | AB48: =IF(EDATE(A42,26)<=EDATE(A43,0),EDATE(A42,26),NA()) ->  | AC48: =IF(EDATE(A42,27)<=EDATE(A43,0),EDATE(A42,27),NA()) ->  | AD48: =IF(EDATE(A42,28)<=EDATE(A43,0),EDATE(A42,28),NA()) ->  | AE48: =IF(EDATE(A42,29)<=EDATE(A43,0),EDATE(A42,29),NA()) ->  | AF48: =IF(EDATE(A42,30)<=EDATE(A43,0),EDATE(A42,30),NA()) ->  | AG48: =IF(EDATE(A42,31)<=EDATE(A43,0),EDATE(A42,31),NA()) ->  | AH48: =IF(EDATE(A42,32)<=EDATE(A43,0),EDATE(A42,32),NA()) ->  | AI48: =IF(EDATE(A42,33)<=EDATE(A43,0),EDATE(A42,33),NA()) ->  | AJ48: =IF(EDATE(A42,34)<=EDATE(A43,0),EDATE(A42,34),NA()) ->  | AK48: =IF(EDATE(A42,35)<=EDATE(A43,0),EDATE(A42,35),NA()) ->  | AL48: =IF(EDATE(A42,36)<=EDATE(A43,0),EDATE(A42,36),NA()) ->  | AM48: =IF(EDATE(A42,37)<=EDATE(A43,0),EDATE(A42,37),NA()) ->  | AN48: =IF(EDATE(A42,38)<=EDATE(A43,0),EDATE(A42,38),NA()) -> 
A49: T Min | B49: =IF(B48=0,NA(),AVERAGEIFS(INDIRECT($A$3&"!$G:$G"),INDIRECT($A$3&"!$E:$E"),MONTH(Tab_Graph!B48),INDIRECT($A$3&"!$F:$F"),YEAR(Tab_Graph!B48))) -> -0.7 | C49: =IF(C48=0,NA(),AVERAGEIFS(INDIRECT($A$3&"!$G:$G"),INDIRECT($A$3&"!$E:$E"),MONTH(Tab_Graph!C48),INDIRECT($A$3&"!$F:$F"),YEAR(Tab_Graph!C48))) -> 0.6 | D49: =IF(D48=0,NA(),AVERAGEIFS(INDIRECT($A$3&"!$G:$G"),INDIRECT($A$3&"!$E:$E"),MONTH(Tab_Graph!D48),INDIRECT($A$3&"!$F:$F"),YEAR(Tab_Graph!D48))) -> 3.3 | E49: =IF(E48=0,NA(),AVERAGEIFS(INDIRECT($A$3&"!$G:$G"),INDIRECT($A$3&"!$E:$E"),MONTH(Tab_Graph!E48),INDIRECT($A$3&"!$F:$F"),YEAR(Tab_Graph!E48))) -> 6.5 | F49: =IF(F48=0,NA(),AVERAGEIFS(INDIRECT($A$3&"!$G:$G"),INDIRECT($A$3&"!$E:$E"),MONTH(Tab_Graph!F48),INDIRECT($A$3&"!$F:$F"),YEAR(Tab_Graph!F48))) -> 10.4 | G49: =IF(G48=0,NA(),AVERAGEIFS(INDIRECT($A$3&"!$G:$G"),INDIRECT($A$3&"!$E:$E"),MONTH(Tab_Graph!G48),INDIRECT($A$3&"!$F:$F"),YEAR(Tab_Graph!G48))) -> 13.6 | H49: =IF(H48=0,NA(),AVERAGEIFS(INDIRECT($A$3&"!$G:$G"),INDIRECT($A$3&"!$E:$E"),MONTH(Tab_Graph!H48),INDIRECT($A$3&"!$F:$F"),YEAR(Tab_Graph!H48))) -> 11.6 | I49: =IF(I48=0,NA(),AVERAGEIFS(INDIRECT($A$3&"!$G:$G"),INDIRECT($A$3&"!$E:$E"),MONTH(Tab_Graph!I48),INDIRECT($A$3&"!$F:$F"),YEAR(Tab_Graph!I48))) -> 9.7 | J49: =IF(J48=0,NA(),AVERAGEIFS(INDIRECT($A$3&"!$G:$G"),INDIRECT($A$3&"!$E:$E"),MONTH(Tab_Graph!J48),INDIRECT($A$3&"!$F:$F"),YEAR(Tab_Graph!J48))) -> 9.3 | K49: =IF(K48=0,NA(),AVERAGEIFS(INDIRECT($A$3&"!$G:$G"),INDIRECT($A$3&"!$E:$E"),MONTH(Tab_Graph!K48),INDIRECT($A$3&"!$F:$F"),YEAR(Tab_Graph!K48))) -> 3.7 | L49: =IF(L48=0,NA(),AVERAGEIFS(INDIRECT($A$3&"!$G:$G"),INDIRECT($A$3&"!$E:$E"),MONTH(Tab_Graph!L48),INDIRECT($A$3&"!$F:$F"),YEAR(Tab_Graph!L48))) -> 1.7 | M49: =IF(M48=0,NA(),AVERAGEIFS(INDIRECT($A$3&"!$G:$G"),INDIRECT($A$3&"!$E:$E"),MONTH(Tab_Graph!M48),INDIRECT($A$3&"!$F:$F"),YEAR(Tab_Graph!M48))) -> 3.4 | N49: =IF(N48=0,NA(),AVERAGEIFS(INDIRECT($A$3&"!$G:$G"),INDIRECT($A$3&"!$E:$E"),MONTH(Tab_Graph!N48),INDIRECT($A$3&"!$F:$F"),YEAR(Tab_Graph!N48))) ->  | O49: =IF(O48=0,NA(),AVERAGEIFS(INDIRECT($A$3&"!$G:$G"),INDIRECT($A$3&"!$E:$E"),MONTH(Tab_Graph!O48),INDIRECT($A$3&"!$F:$F"),YEAR(Tab_Graph!O48))) ->  | P49: =IF(P48=0,NA(),AVERAGEIFS(INDIRECT($A$3&"!$G:$G"),INDIRECT($A$3&"!$E:$E"),MONTH(Tab_Graph!P48),INDIRECT($A$3&"!$F:$F"),YEAR(Tab_Graph!P48))) ->  | Q49: =IF(Q48=0,NA(),AVERAGEIFS(INDIRECT($A$3&"!$G:$G"),INDIRECT($A$3&"!$E:$E"),MONTH(Tab_Graph!Q48),INDIRECT($A$3&"!$F:$F"),YEAR(Tab_Graph!Q48))) ->  | R49: =IF(R48=0,NA(),AVERAGEIFS(INDIRECT($A$3&"!$G:$G"),INDIRECT($A$3&"!$E:$E"),MONTH(Tab_Graph!R48),INDIRECT($A$3&"!$F:$F"),YEAR(Tab_Graph!R48))) ->  | S49: =IF(S48=0,NA(),AVERAGEIFS(INDIRECT($A$3&"!$G:$G"),INDIRECT($A$3&"!$E:$E"),MONTH(Tab_Graph!S48),INDIRECT($A$3&"!$F:$F"),YEAR(Tab_Graph!S48))) ->  | T49: =IF(T48=0,NA(),AVERAGEIFS(INDIRECT($A$3&"!$G:$G"),INDIRECT($A$3&"!$E:$E"),MONTH(Tab_Graph!T48),INDIRECT($A$3&"!$F:$F"),YEAR(Tab_Graph!T48))) ->  | U49: =IF(U48=0,NA(),AVERAGEIFS(INDIRECT($A$3&"!$G:$G"),INDIRECT($A$3&"!$E:$E"),MONTH(Tab_Graph!U48),INDIRECT($A$3&"!$F:$F"),YEAR(Tab_Graph!U48))) ->  | V49: =IF(V48=0,NA(),AVERAGEIFS(INDIRECT($A$3&"!$G:$G"),INDIRECT($A$3&"!$E:$E"),MONTH(Tab_Graph!V48),INDIRECT($A$3&"!$F:$F"),YEAR(Tab_Graph!V48))) ->  | W49: =IF(W48=0,NA(),AVERAGEIFS(INDIRECT($A$3&"!$G:$G"),INDIRECT($A$3&"!$E:$E"),MONTH(Tab_Graph!W48),INDIRECT($A$3&"!$F:$F"),YEAR(Tab_Graph!W48))) ->  | X49: =IF(X48=0,NA(),AVERAGEIFS(INDIRECT($A$3&"!$G:$G"),INDIRECT($A$3&"!$E:$E"),MONTH(Tab_Graph!X48),INDIRECT($A$3&"!$F:$F"),YEAR(Tab_Graph!X48))) ->  | Y49: =IF(Y48=0,NA(),AVERAGEIFS(INDIRECT($A$3&"!$G:$G"),INDIRECT($A$3&"!$E:$E"),MONTH(Tab_Graph!Y48),INDIRECT($A$3&"!$F:$F"),YEAR(Tab_Graph!Y48))) ->  | Z49: =IF(Z48=0,NA(),AVERAGEIFS(INDIRECT($A$3&"!$G:$G"),INDIRECT($A$3&"!$E:$E"),MONTH(Tab_Graph!Z48),INDIRECT($A$3&"!$F:$F"),YEAR(Tab_Graph!Z48))) ->  | AA49: =IF(AA48=0,NA(),AVERAGEIFS(INDIRECT($A$3&"!$G:$G"),INDIRECT($A$3&"!$E:$E"),MONTH(Tab_Graph!AA48),INDIRECT($A$3&"!$F:$F"),YEAR(Tab_Graph!AA48))) ->  | AB49: =IF(AB48=0,NA(),AVERAGEIFS(INDIRECT($A$3&"!$G:$G"),INDIRECT($A$3&"!$E:$E"),MONTH(Tab_Graph!AB48),INDIRECT($A$3&"!$F:$F"),YEAR(Tab_Graph!AB48))) ->  | AC49: =IF(AC48=0,NA(),AVERAGEIFS(INDIRECT($A$3&"!$G:$G"),INDIRECT($A$3&"!$E:$E"),MONTH(Tab_Graph!AC48),INDIRECT($A$3&"!$F:$F"),YEAR(Tab_Graph!AC48))) ->  | AD49: =IF(AD48=0,NA(),AVERAGEIFS(INDIRECT($A$3&"!$G:$G"),INDIRECT($A$3&"!$E:$E"),MONTH(Tab_Graph!AD48),INDIRECT($A$3&"!$F:$F"),YEAR(Tab_Graph!AD48))) ->  | AE49: =IF(AE48=0,NA(),AVERAGEIFS(INDIRECT($A$3&"!$G:$G"),INDIRECT($A$3&"!$E:$E"),MONTH(Tab_Graph!AE48),INDIRECT($A$3&"!$F:$F"),YEAR(Tab_Graph!AE48))) ->  | AF49: =IF(AF48=0,NA(),AVERAGEIFS(INDIRECT($A$3&"!$G:$G"),INDIRECT($A$3&"!$E:$E"),MONTH(Tab_Graph!AF48),INDIRECT($A$3&"!$F:$F"),YEAR(Tab_Graph!AF48))) ->  | AG49: =IF(AG48=0,NA(),AVERAGEIFS(INDIRECT($A$3&"!$G:$G"),INDIRECT($A$3&"!$E:$E"),MONTH(Tab_Graph!AG48),INDIRECT($A$3&"!$F:$F"),YEAR(Tab_Graph!AG48))) ->  | AH49: =IF(AH48=0,NA(),AVERAGEIFS(INDIRECT($A$3&"!$G:$G"),INDIRECT($A$3&"!$E:$E"),MONTH(Tab_Graph!AH48),INDIRECT($A$3&"!$F:$F"),YEAR(Tab_Graph!AH48))) ->  | AI49: =IF(AI48=0,NA(),AVERAGEIFS(INDIRECT($A$3&"!$G:$G"),INDIRECT($A$3&"!$E:$E"),MONTH(Tab_Graph!AI48),INDIRECT($A$3&"!$F:$F"),YEAR(Tab_Graph!AI48))) ->  | AJ49: =IF(AJ48=0,NA(),AVERAGEIFS(INDIRECT($A$3&"!$G:$G"),INDIRECT($A$3&"!$E:$E"),MONTH(Tab_Graph!AJ48),INDIRECT($A$3&"!$F:$F"),YEAR(Tab_Graph!AJ48))) ->  | AK49: =IF(AK48=0,NA(),AVERAGEIFS(INDIRECT($A$3&"!$G:$G"),INDIRECT($A$3&"!$E:$E"),MONTH(Tab_Graph!AK48),INDIRECT($A$3&"!$F:$F"),YEAR(Tab_Graph!AK48))) ->  | AL49: =IF(AL48=0,NA(),AVERAGEIFS(INDIRECT($A$3&"!$G:$G"),INDIRECT($A$3&"!$E:$E"),MONTH(Tab_Graph!AL48),INDIRECT($A$3&"!$F:$F"),YEAR(Tab_Graph!AL48))) ->  | AM49: =IF(AM48=0,NA(),AVERAGEIFS(INDIRECT($A$3&"!$G:$G"),INDIRECT($A$3&"!$E:$E"),MONTH(Tab_Graph!AM48),INDIRECT($A$3&"!$F:$F"),YEAR(Tab_Graph!AM48))) ->  | AN49: =IF(AN48=0,NA(),AVERAGEIFS(INDIRECT($A$3&"!$G:$G"),INDIRECT($A$3&"!$E:$E"),MONTH(Tab_Graph!AN48),INDIRECT($A$3&"!$F:$F"),YEAR(Tab_Graph!AN48))) -> 
A50: T Max | B50: =IF(B48=0,NA(),AVERAGEIFS(INDIRECT($A$3&"!$H:$H"),INDIRECT($A$3&"!$E:$E"),MONTH(Tab_Graph!B48),INDIRECT($A$3&"!$F:$F"),YEAR(Tab_Graph!B48))) -> 4.9 | C50: =IF(C48=0,NA(),AVERAGEIFS(INDIRECT($A$3&"!$H:$H"),INDIRECT($A$3&"!$E:$E"),MONTH(Tab_Graph!C48),INDIRECT($A$3&"!$F:$F"),YEAR(Tab_Graph!C48))) -> 7.1 | D50: =IF(D48=0,NA(),AVERAGEIFS(INDIRECT($A$3&"!$H:$H"),INDIRECT($A$3&"!$E:$E"),MONTH(Tab_Graph!D48),INDIRECT($A$3&"!$F:$F"),YEAR(Tab_Graph!D48))) -> 14.0 | E50: =IF(E48=0,NA(),AVERAGEIFS(INDIRECT($A$3&"!$H:$H"),INDIRECT($A$3&"!$E:$E"),MONTH(Tab_Graph!E48),INDIRECT($A$3&"!$F:$F"),YEAR(Tab_Graph!E48))) -> 15.4 | F50: =IF(F48=0,NA(),AVERAGEIFS(INDIRECT($A$3&"!$H:$H"),INDIRECT($A$3&"!$E:$E"),MONTH(Tab_Graph!F48),INDIRECT($A$3&"!$F:$F"),YEAR(Tab_Graph!F48))) -> 20.4 | G50: =IF(G48=0,NA(),AVERAGEIFS(INDIRECT($A$3&"!$H:$H"),INDIRECT($A$3&"!$E:$E"),MONTH(Tab_Graph!G48),INDIRECT($A$3&"!$F:$F"),YEAR(Tab_Graph!G48))) -> 26.1 | H50: =IF(H48=0,NA(),AVERAGEIFS(INDIRECT($A$3&"!$H:$H"),INDIRECT($A$3&"!$E:$E"),MONTH(Tab_Graph!H48),INDIRECT($A$3&"!$F:$F"),YEAR(Tab_Graph!H48))) -> 24.4 | I50: =IF(I48=0,NA(),AVERAGEIFS(INDIRECT($A$3&"!$H:$H"),INDIRECT($A$3&"!$E:$E"),MONTH(Tab_Graph!I48),INDIRECT($A$3&"!$F:$F"),YEAR(Tab_Graph!I48))) -> 20.2 | J50: =IF(J48=0,NA(),AVERAGEIFS(INDIRECT($A$3&"!$H:$H"),INDIRECT($A$3&"!$E:$E"),MONTH(Tab_Graph!J48),INDIRECT($A$3&"!$F:$F"),YEAR(Tab_Graph!J48))) -> 16.9 | K50: =IF(K48=0,NA(),AVERAGEIFS(INDIRECT($A$3&"!$H:$H"),INDIRECT($A$3&"!$E:$E"),MONTH(Tab_Graph!K48),INDIRECT($A$3&"!$F:$F"),YEAR(Tab_Graph!K48))) -> 9.5 | L50: =IF(L48=0,NA(),AVERAGEIFS(INDIRECT($A$3&"!$H:$H"),INDIRECT($A$3&"!$E:$E"),MONTH(Tab_Graph!L48),INDIRECT($A$3&"!$F:$F"),YEAR(Tab_Graph!L48))) -> 8.4 | M50: =IF(M48=0,NA(),AVERAGEIFS(INDIRECT($A$3&"!$H:$H"),INDIRECT($A$3&"!$E:$E"),MONTH(Tab_Graph!M48),INDIRECT($A$3&"!$F:$F"),YEAR(Tab_Graph!M48))) -> 9.1 | N50: =IF(N48=0,NA(),AVERAGEIFS(INDIRECT($A$3&"!$H:$H"),INDIRECT($A$3&"!$E:$E"),MONTH(Tab_Graph!N48),INDIRECT($A$3&"!$F:$F"),YEAR(Tab_Graph!N48))) ->  | O50: =IF(O48=0,NA(),AVERAGEIFS(INDIRECT($A$3&"!$H:$H"),INDIRECT($A$3&"!$E:$E"),MONTH(Tab_Graph!O48),INDIRECT($A$3&"!$F:$F"),YEAR(Tab_Graph!O48))) ->  | P50: =IF(P48=0,NA(),AVERAGEIFS(INDIRECT($A$3&"!$H:$H"),INDIRECT($A$3&"!$E:$E"),MONTH(Tab_Graph!P48),INDIRECT($A$3&"!$F:$F"),YEAR(Tab_Graph!P48))) ->  | Q50: =IF(Q48=0,NA(),AVERAGEIFS(INDIRECT($A$3&"!$H:$H"),INDIRECT($A$3&"!$E:$E"),MONTH(Tab_Graph!Q48),INDIRECT($A$3&"!$F:$F"),YEAR(Tab_Graph!Q48))) ->  | R50: =IF(R48=0,NA(),AVERAGEIFS(INDIRECT($A$3&"!$H:$H"),INDIRECT($A$3&"!$E:$E"),MONTH(Tab_Graph!R48),INDIRECT($A$3&"!$F:$F"),YEAR(Tab_Graph!R48))) ->  | S50: =IF(S48=0,NA(),AVERAGEIFS(INDIRECT($A$3&"!$H:$H"),INDIRECT($A$3&"!$E:$E"),MONTH(Tab_Graph!S48),INDIRECT($A$3&"!$F:$F"),YEAR(Tab_Graph!S48))) ->  | T50: =IF(T48=0,NA(),AVERAGEIFS(INDIRECT($A$3&"!$H:$H"),INDIRECT($A$3&"!$E:$E"),MONTH(Tab_Graph!T48),INDIRECT($A$3&"!$F:$F"),YEAR(Tab_Graph!T48))) ->  | U50: =IF(U48=0,NA(),AVERAGEIFS(INDIRECT($A$3&"!$H:$H"),INDIRECT($A$3&"!$E:$E"),MONTH(Tab_Graph!U48),INDIRECT($A$3&"!$F:$F"),YEAR(Tab_Graph!U48))) ->  | V50: =IF(V48=0,NA(),AVERAGEIFS(INDIRECT($A$3&"!$H:$H"),INDIRECT($A$3&"!$E:$E"),MONTH(Tab_Graph!V48),INDIRECT($A$3&"!$F:$F"),YEAR(Tab_Graph!V48))) ->  | W50: =IF(W48=0,NA(),AVERAGEIFS(INDIRECT($A$3&"!$H:$H"),INDIRECT($A$3&"!$E:$E"),MONTH(Tab_Graph!W48),INDIRECT($A$3&"!$F:$F"),YEAR(Tab_Graph!W48))) ->  | X50: =IF(X48=0,NA(),AVERAGEIFS(INDIRECT($A$3&"!$H:$H"),INDIRECT($A$3&"!$E:$E"),MONTH(Tab_Graph!X48),INDIRECT($A$3&"!$F:$F"),YEAR(Tab_Graph!X48))) ->  | Y50: =IF(Y48=0,NA(),AVERAGEIFS(INDIRECT($A$3&"!$H:$H"),INDIRECT($A$3&"!$E:$E"),MONTH(Tab_Graph!Y48),INDIRECT($A$3&"!$F:$F"),YEAR(Tab_Graph!Y48))) ->  | Z50: =IF(Z48=0,NA(),AVERAGEIFS(INDIRECT($A$3&"!$H:$H"),INDIRECT($A$3&"!$E:$E"),MONTH(Tab_Graph!Z48),INDIRECT($A$3&"!$F:$F"),YEAR(Tab_Graph!Z48))) ->  | AA50: =IF(AA48=0,NA(),AVERAGEIFS(INDIRECT($A$3&"!$H:$H"),INDIRECT($A$3&"!$E:$E"),MONTH(Tab_Graph!AA48),INDIRECT($A$3&"!$F:$F"),YEAR(Tab_Graph!AA48))) ->  | AB50: =IF(AB48=0,NA(),AVERAGEIFS(INDIRECT($A$3&"!$H:$H"),INDIRECT($A$3&"!$E:$E"),MONTH(Tab_Graph!AB48),INDIRECT($A$3&"!$F:$F"),YEAR(Tab_Graph!AB48))) ->  | AC50: =IF(AC48=0,NA(),AVERAGEIFS(INDIRECT($A$3&"!$H:$H"),INDIRECT($A$3&"!$E:$E"),MONTH(Tab_Graph!AC48),INDIRECT($A$3&"!$F:$F"),YEAR(Tab_Graph!AC48))) ->  | AD50: =IF(AD48=0,NA(),AVERAGEIFS(INDIRECT($A$3&"!$H:$H"),INDIRECT($A$3&"!$E:$E"),MONTH(Tab_Graph!AD48),INDIRECT($A$3&"!$F:$F"),YEAR(Tab_Graph!AD48))) ->  | AE50: =IF(AE48=0,NA(),AVERAGEIFS(INDIRECT($A$3&"!$H:$H"),INDIRECT($A$3&"!$E:$E"),MONTH(Tab_Graph!AE48),INDIRECT($A$3&"!$F:$F"),YEAR(Tab_Graph!AE48))) ->  | AF50: =IF(AF48=0,NA(),AVERAGEIFS(INDIRECT($A$3&"!$H:$H"),INDIRECT($A$3&"!$E:$E"),MONTH(Tab_Graph!AF48),INDIRECT($A$3&"!$F:$F"),YEAR(Tab_Graph!AF48))) ->  | AG50: =IF(AG48=0,NA(),AVERAGEIFS(INDIRECT($A$3&"!$H:$H"),INDIRECT($A$3&"!$E:$E"),MONTH(Tab_Graph!AG48),INDIRECT($A$3&"!$F:$F"),YEAR(Tab_Graph!AG48))) ->  | AH50: =IF(AH48=0,NA(),AVERAGEIFS(INDIRECT($A$3&"!$H:$H"),INDIRECT($A$3&"!$E:$E"),MONTH(Tab_Graph!AH48),INDIRECT($A$3&"!$F:$F"),YEAR(Tab_Graph!AH48))) ->  | AI50: =IF(AI48=0,NA(),AVERAGEIFS(INDIRECT($A$3&"!$H:$H"),INDIRECT($A$3&"!$E:$E"),MONTH(Tab_Graph!AI48),INDIRECT($A$3&"!$F:$F"),YEAR(Tab_Graph!AI48))) ->  | AJ50: =IF(AJ48=0,NA(),AVERAGEIFS(INDIRECT($A$3&"!$H:$H"),INDIRECT($A$3&"!$E:$E"),MONTH(Tab_Graph!AJ48),INDIRECT($A$3&"!$F:$F"),YEAR(Tab_Graph!AJ48))) ->  | AK50: =IF(AK48=0,NA(),AVERAGEIFS(INDIRECT($A$3&"!$H:$H"),INDIRECT($A$3&"!$E:$E"),MONTH(Tab_Graph!AK48),INDIRECT($A$3&"!$F:$F"),YEAR(Tab_Graph!AK48))) ->  | AL50: =IF(AL48=0,NA(),AVERAGEIFS(INDIRECT($A$3&"!$H:$H"),INDIRECT($A$3&"!$E:$E"),MONTH(Tab_Graph!AL48),INDIRECT($A$3&"!$F:$F"),YEAR(Tab_Graph!AL48))) ->  | AM50: =IF(AM48=0,NA(),AVERAGEIFS(INDIRECT($A$3&"!$H:$H"),INDIRECT($A$3&"!$E:$E"),MONTH(Tab_Graph!AM48),INDIRECT($A$3&"!$F:$F"),YEAR(Tab_Graph!AM48))) ->  | AN50: =IF(AN48=0,NA(),AVERAGEIFS(INDIRECT($A$3&"!$H:$H"),INDIRECT($A$3&"!$E:$E"),MONTH(Tab_Graph!AN48),INDIRECT($A$3&"!$F:$F"),YEAR(Tab_Graph!AN48))) -> 
A51: Ensoleillement | B51: =IF(B48=0,NA(),SUMIFS(INDIRECT($A$3&"!$I:$I"),INDIRECT($A$3&"!$E:$E"),MONTH(Tab_Graph!B48),INDIRECT($A$3&"!$F:$F"),YEAR(Tab_Graph!B48))/DAY(DATE(YEAR(B48),MONTH(B48)+1,0))) -> 2.3 | C51: =IF(C48=0,NA(),SUMIFS(INDIRECT($A$3&"!$I:$I"),INDIRECT($A$3&"!$E:$E"),MONTH(Tab_Graph!C48),INDIRECT($A$3&"!$F:$F"),YEAR(Tab_Graph!C48))/DAY(DATE(YEAR(C48),MONTH(C48)+1,0))) -> 2.5 | D51: =IF(D48=0,NA(),SUMIFS(INDIRECT($A$3&"!$I:$I"),INDIRECT($A$3&"!$E:$E"),MONTH(Tab_Graph!D48),INDIRECT($A$3&"!$F:$F"),YEAR(Tab_Graph!D48))/DAY(DATE(YEAR(D48),MONTH(D48)+1,0))) -> 5.8 | E51: =IF(E48=0,NA(),SUMIFS(INDIRECT($A$3&"!$I:$I"),INDIRECT($A$3&"!$E:$E"),MONTH(Tab_Graph!E48),INDIRECT($A$3&"!$F:$F"),YEAR(Tab_Graph!E48))/DAY(DATE(YEAR(E48),MONTH(E48)+1,0))) -> 4.2 | F51: =IF(F48=0,NA(),SUMIFS(INDIRECT($A$3&"!$I:$I"),INDIRECT($A$3&"!$E:$E"),MONTH(Tab_Graph!F48),INDIRECT($A$3&"!$F:$F"),YEAR(Tab_Graph!F48))/DAY(DATE(YEAR(F48),MONTH(F48)+1,0))) -> 5.7 | G51: =IF(G48=0,NA(),SUMIFS(INDIRECT($A$3&"!$I:$I"),INDIRECT($A$3&"!$E:$E"),MONTH(Tab_Graph!G48),INDIRECT($A$3&"!$F:$F"),YEAR(Tab_Graph!G48))/DAY(DATE(YEAR(G48),MONTH(G48)+1,0))) -> 8.6 | H51: =IF(H48=0,NA(),SUMIFS(INDIRECT($A$3&"!$I:$I"),INDIRECT($A$3&"!$E:$E"),MONTH(Tab_Graph!H48),INDIRECT($A$3&"!$F:$F"),YEAR(Tab_Graph!H48))/DAY(DATE(YEAR(H48),MONTH(H48)+1,0))) -> 7.4 | I51: =IF(I48=0,NA(),SUMIFS(INDIRECT($A$3&"!$I:$I"),INDIRECT($A$3&"!$E:$E"),MONTH(Tab_Graph!I48),INDIRECT($A$3&"!$F:$F"),YEAR(Tab_Graph!I48))/DAY(DATE(YEAR(I48),MONTH(I48)+1,0))) -> 5.1 | J51: =IF(J48=0,NA(),SUMIFS(INDIRECT($A$3&"!$I:$I"),INDIRECT($A$3&"!$E:$E"),MONTH(Tab_Graph!J48),INDIRECT($A$3&"!$F:$F"),YEAR(Tab_Graph!J48))/DAY(DATE(YEAR(J48),MONTH(J48)+1,0))) -> 2.6 | K51: =IF(K48=0,NA(),SUMIFS(INDIRECT($A$3&"!$I:$I"),INDIRECT($A$3&"!$E:$E"),MONTH(Tab_Graph!K48),INDIRECT($A$3&"!$F:$F"),YEAR(Tab_Graph!K48))/DAY(DATE(YEAR(K48),MONTH(K48)+1,0))) -> 1.6 | L51: =IF(L48=0,NA(),SUMIFS(INDIRECT($A$3&"!$I:$I"),INDIRECT($A$3&"!$E:$E"),MONTH(Tab_Graph!L48),INDIRECT($A$3&"!$F:$F"),YEAR(Tab_Graph!L48))/DAY(DATE(YEAR(L48),MONTH(L48)+1,0))) -> 2.7 | M51: =IF(M48=0,NA(),SUMIFS(INDIRECT($A$3&"!$I:$I"),INDIRECT($A$3&"!$E:$E"),MONTH(Tab_Graph!M48),INDIRECT($A$3&"!$F:$F"),YEAR(Tab_Graph!M48))/DAY(DATE(YEAR(M48),MONTH(M48)+1,0))) -> 1.3 | N51: =IF(N48=0,NA(),SUMIFS(INDIRECT($A$3&"!$I:$I"),INDIRECT($A$3&"!$E:$E"),MONTH(Tab_Graph!N48),INDIRECT($A$3&"!$F:$F"),YEAR(Tab_Graph!N48))/DAY(DATE(YEAR(N48),MONTH(N48)+1,0))) ->  | O51: =IF(O48=0,NA(),SUMIFS(INDIRECT($A$3&"!$I:$I"),INDIRECT($A$3&"!$E:$E"),MONTH(Tab_Graph!O48),INDIRECT($A$3&"!$F:$F"),YEAR(Tab_Graph!O48))/DAY(DATE(YEAR(O48),MONTH(O48)+1,0))) ->  | P51: =IF(P48=0,NA(),SUMIFS(INDIRECT($A$3&"!$I:$I"),INDIRECT($A$3&"!$E:$E"),MONTH(Tab_Graph!P48),INDIRECT($A$3&"!$F:$F"),YEAR(Tab_Graph!P48))/DAY(DATE(YEAR(P48),MONTH(P48)+1,0))) ->  | Q51: =IF(Q48=0,NA(),SUMIFS(INDIRECT($A$3&"!$I:$I"),INDIRECT($A$3&"!$E:$E"),MONTH(Tab_Graph!Q48),INDIRECT($A$3&"!$F:$F"),YEAR(Tab_Graph!Q48))/DAY(DATE(YEAR(Q48),MONTH(Q48)+1,0))) ->  | R51: =IF(R48=0,NA(),SUMIFS(INDIRECT($A$3&"!$I:$I"),INDIRECT($A$3&"!$E:$E"),MONTH(Tab_Graph!R48),INDIRECT($A$3&"!$F:$F"),YEAR(Tab_Graph!R48))/DAY(DATE(YEAR(R48),MONTH(R48)+1,0))) ->  | S51: =IF(S48=0,NA(),SUMIFS(INDIRECT($A$3&"!$I:$I"),INDIRECT($A$3&"!$E:$E"),MONTH(Tab_Graph!S48),INDIRECT($A$3&"!$F:$F"),YEAR(Tab_Graph!S48))/DAY(DATE(YEAR(S48),MONTH(S48)+1,0))) ->  | T51: =IF(T48=0,NA(),SUMIFS(INDIRECT($A$3&"!$I:$I"),INDIRECT($A$3&"!$E:$E"),MONTH(Tab_Graph!T48),INDIRECT($A$3&"!$F:$F"),YEAR(Tab_Graph!T48))/DAY(DATE(YEAR(T48),MONTH(T48)+1,0))) ->  | U51: =IF(U48=0,NA(),SUMIFS(INDIRECT($A$3&"!$I:$I"),INDIRECT($A$3&"!$E:$E"),MONTH(Tab_Graph!U48),INDIRECT($A$3&"!$F:$F"),YEAR(Tab_Graph!U48))/DAY(DATE(YEAR(U48),MONTH(U48)+1,0))) ->  | V51: =IF(V48=0,NA(),SUMIFS(INDIRECT($A$3&"!$I:$I"),INDIRECT($A$3&"!$E:$E"),MONTH(Tab_Graph!V48),INDIRECT($A$3&"!$F:$F"),YEAR(Tab_Graph!V48))/DAY(DATE(YEAR(V48),MONTH(V48)+1,0))) ->  | W51: =IF(W48=0,NA(),SUMIFS(INDIRECT($A$3&"!$I:$I"),INDIRECT($A$3&"!$E:$E"),MONTH(Tab_Graph!W48),INDIRECT($A$3&"!$F:$F"),YEAR(Tab_Graph!W48))/DAY(DATE(YEAR(W48),MONTH(W48)+1,0))) ->  | X51: =IF(X48=0,NA(),SUMIFS(INDIRECT($A$3&"!$I:$I"),INDIRECT($A$3&"!$E:$E"),MONTH(Tab_Graph!X48),INDIRECT($A$3&"!$F:$F"),YEAR(Tab_Graph!X48))/DAY(DATE(YEAR(X48),MONTH(X48)+1,0))) ->  | Y51: =IF(Y48=0,NA(),SUMIFS(INDIRECT($A$3&"!$I:$I"),INDIRECT($A$3&"!$E:$E"),MONTH(Tab_Graph!Y48),INDIRECT($A$3&"!$F:$F"),YEAR(Tab_Graph!Y48))/DAY(DATE(YEAR(Y48),MONTH(Y48)+1,0))) ->  | Z51: =IF(Z48=0,NA(),SUMIFS(INDIRECT($A$3&"!$I:$I"),INDIRECT($A$3&"!$E:$E"),MONTH(Tab_Graph!Z48),INDIRECT($A$3&"!$F:$F"),YEAR(Tab_Graph!Z48))/DAY(DATE(YEAR(Z48),MONTH(Z48)+1,0))) ->  | AA51: =IF(AA48=0,NA(),SUMIFS(INDIRECT($A$3&"!$I:$I"),INDIRECT($A$3&"!$E:$E"),MONTH(Tab_Graph!AA48),INDIRECT($A$3&"!$F:$F"),YEAR(Tab_Graph!AA48))/DAY(DATE(YEAR(AA48),MONTH(AA48)+1,0))) ->  | AB51: =IF(AB48=0,NA(),SUMIFS(INDIRECT($A$3&"!$I:$I"),INDIRECT($A$3&"!$E:$E"),MONTH(Tab_Graph!AB48),INDIRECT($A$3&"!$F:$F"),YEAR(Tab_Graph!AB48))/DAY(DATE(YEAR(AB48),MONTH(AB48)+1,0))) ->  | AC51: =IF(AC48=0,NA(),SUMIFS(INDIRECT($A$3&"!$I:$I"),INDIRECT($A$3&"!$E:$E"),MONTH(Tab_Graph!AC48),INDIRECT($A$3&"!$F:$F"),YEAR(Tab_Graph!AC48))/DAY(DATE(YEAR(AC48),MONTH(AC48)+1,0))) ->  | AD51: =IF(AD48=0,NA(),SUMIFS(INDIRECT($A$3&"!$I:$I"),INDIRECT($A$3&"!$E:$E"),MONTH(Tab_Graph!AD48),INDIRECT($A$3&"!$F:$F"),YEAR(Tab_Graph!AD48))/DAY(DATE(YEAR(AD48),MONTH(AD48)+1,0))) ->  | AE51: =IF(AE48=0,NA(),SUMIFS(INDIRECT($A$3&"!$I:$I"),INDIRECT($A$3&"!$E:$E"),MONTH(Tab_Graph!AE48),INDIRECT($A$3&"!$F:$F"),YEAR(Tab_Graph!AE48))/DAY(DATE(YEAR(AE48),MONTH(AE48)+1,0))) ->  | AF51: =IF(AF48=0,NA(),SUMIFS(INDIRECT($A$3&"!$I:$I"),INDIRECT($A$3&"!$E:$E"),MONTH(Tab_Graph!AF48),INDIRECT($A$3&"!$F:$F"),YEAR(Tab_Graph!AF48))/DAY(DATE(YEAR(AF48),MONTH(AF48)+1,0))) ->  | AG51: =IF(AG48=0,NA(),SUMIFS(INDIRECT($A$3&"!$I:$I"),INDIRECT($A$3&"!$E:$E"),MONTH(Tab_Graph!AG48),INDIRECT($A$3&"!$F:$F"),YEAR(Tab_Graph!AG48))/DAY(DATE(YEAR(AG48),MONTH(AG48)+1,0))) ->  | AH51: =IF(AH48=0,NA(),SUMIFS(INDIRECT($A$3&"!$I:$I"),INDIRECT($A$3&"!$E:$E"),MONTH(Tab_Graph!AH48),INDIRECT($A$3&"!$F:$F"),YEAR(Tab_Graph!AH48))/DAY(DATE(YEAR(AH48),MONTH(AH48)+1,0))) ->  | AI51: =IF(AI48=0,NA(),SUMIFS(INDIRECT($A$3&"!$I:$I"),INDIRECT($A$3&"!$E:$E"),MONTH(Tab_Graph!AI48),INDIRECT($A$3&"!$F:$F"),YEAR(Tab_Graph!AI48))/DAY(DATE(YEAR(AI48),MONTH(AI48)+1,0))) ->  | AJ51: =IF(AJ48=0,NA(),SUMIFS(INDIRECT($A$3&"!$I:$I"),INDIRECT($A$3&"!$E:$E"),MONTH(Tab_Graph!AJ48),INDIRECT($A$3&"!$F:$F"),YEAR(Tab_Graph!AJ48))/DAY(DATE(YEAR(AJ48),MONTH(AJ48)+1,0))) ->  | AK51: =IF(AK48=0,NA(),SUMIFS(INDIRECT($A$3&"!$I:$I"),INDIRECT($A$3&"!$E:$E"),MONTH(Tab_Graph!AK48),INDIRECT($A$3&"!$F:$F"),YEAR(Tab_Graph!AK48))/DAY(DATE(YEAR(AK48),MONTH(AK48)+1,0))) ->  | AL51: =IF(AL48=0,NA(),SUMIFS(INDIRECT($A$3&"!$I:$I"),INDIRECT($A$3&"!$E:$E"),MONTH(Tab_Graph!AL48),INDIRECT($A$3&"!$F:$F"),YEAR(Tab_Graph!AL48))/DAY(DATE(YEAR(AL48),MONTH(AL48)+1,0))) ->  | AM51: =IF(AM48=0,NA(),SUMIFS(INDIRECT($A$3&"!$I:$I"),INDIRECT($A$3&"!$E:$E"),MONTH(Tab_Graph!AM48),INDIRECT($A$3&"!$F:$F"),YEAR(Tab_Graph!AM48))/DAY(DATE(YEAR(AM48),MONTH(AM48)+1,0))) ->  | AN51: =IF(AN48=0,NA(),SUMIFS(INDIRECT($A$3&"!$I:$I"),INDIRECT($A$3&"!$E:$E"),MONTH(Tab_Graph!AN48),INDIRECT($A$3&"!$F:$F"),YEAR(Tab_Graph!AN48))/DAY(DATE(YEAR(AN48),MONTH(AN48)+1,0))) -> 
A52: Pluviométrie | B52: =IF(B48=0,NA(),SUMIFS(INDIRECT($A$3&"!$J:$J"),INDIRECT($A$3&"!$E:$E"),MONTH(Tab_Graph!B48),INDIRECT($A$3&"!$F:$F"),YEAR(Tab_Graph!B48))/DAY(DATE(YEAR(B48),MONTH(B48)+1,0))) -> 1.1 | C52: =IF(C48=0,NA(),SUMIFS(INDIRECT($A$3&"!$J:$J"),INDIRECT($A$3&"!$E:$E"),MONTH(Tab_Graph!C48),INDIRECT($A$3&"!$F:$F"),YEAR(Tab_Graph!C48))/DAY(DATE(YEAR(C48),MONTH(C48)+1,0))) -> 0.9 | D52: =IF(D48=0,NA(),SUMIFS(INDIRECT($A$3&"!$J:$J"),INDIRECT($A$3&"!$E:$E"),MONTH(Tab_Graph!D48),INDIRECT($A$3&"!$F:$F"),YEAR(Tab_Graph!D48))/DAY(DATE(YEAR(D48),MONTH(D48)+1,0))) -> 0.9 | E52: =IF(E48=0,NA(),SUMIFS(INDIRECT($A$3&"!$J:$J"),INDIRECT($A$3&"!$E:$E"),MONTH(Tab_Graph!E48),INDIRECT($A$3&"!$F:$F"),YEAR(Tab_Graph!E48))/DAY(DATE(YEAR(E48),MONTH(E48)+1,0))) -> 2.5 | F52: =IF(F48=0,NA(),SUMIFS(INDIRECT($A$3&"!$J:$J"),INDIRECT($A$3&"!$E:$E"),MONTH(Tab_Graph!F48),INDIRECT($A$3&"!$F:$F"),YEAR(Tab_Graph!F48))/DAY(DATE(YEAR(F48),MONTH(F48)+1,0))) -> 1.8 | G52: =IF(G48=0,NA(),SUMIFS(INDIRECT($A$3&"!$J:$J"),INDIRECT($A$3&"!$E:$E"),MONTH(Tab_Graph!G48),INDIRECT($A$3&"!$F:$F"),YEAR(Tab_Graph!G48))/DAY(DATE(YEAR(G48),MONTH(G48)+1,0))) -> 2.8 | H52: =IF(H48=0,NA(),SUMIFS(INDIRECT($A$3&"!$J:$J"),INDIRECT($A$3&"!$E:$E"),MONTH(Tab_Graph!H48),INDIRECT($A$3&"!$F:$F"),YEAR(Tab_Graph!H48))/DAY(DATE(YEAR(H48),MONTH(H48)+1,0))) -> 1.7 | I52: =IF(I48=0,NA(),SUMIFS(INDIRECT($A$3&"!$J:$J"),INDIRECT($A$3&"!$E:$E"),MONTH(Tab_Graph!I48),INDIRECT($A$3&"!$F:$F"),YEAR(Tab_Graph!I48))/DAY(DATE(YEAR(I48),MONTH(I48)+1,0))) -> 1.3 | J52: =IF(J48=0,NA(),SUMIFS(INDIRECT($A$3&"!$J:$J"),INDIRECT($A$3&"!$E:$E"),MONTH(Tab_Graph!J48),INDIRECT($A$3&"!$F:$F"),YEAR(Tab_Graph!J48))/DAY(DATE(YEAR(J48),MONTH(J48)+1,0))) -> 1.5 | K52: =IF(K48=0,NA(),SUMIFS(INDIRECT($A$3&"!$J:$J"),INDIRECT($A$3&"!$E:$E"),MONTH(Tab_Graph!K48),INDIRECT($A$3&"!$F:$F"),YEAR(Tab_Graph!K48))/DAY(DATE(YEAR(K48),MONTH(K48)+1,0))) -> 2.8 | L52: =IF(L48=0,NA(),SUMIFS(INDIRECT($A$3&"!$J:$J"),INDIRECT($A$3&"!$E:$E"),MONTH(Tab_Graph!L48),INDIRECT($A$3&"!$F:$F"),YEAR(Tab_Graph!L48))/DAY(DATE(YEAR(L48),MONTH(L48)+1,0))) -> 2.6 | M52: =IF(M48=0,NA(),SUMIFS(INDIRECT($A$3&"!$J:$J"),INDIRECT($A$3&"!$E:$E"),MONTH(Tab_Graph!M48),INDIRECT($A$3&"!$F:$F"),YEAR(Tab_Graph!M48))/DAY(DATE(YEAR(M48),MONTH(M48)+1,0))) -> 2.3 | N52: =IF(N48=0,NA(),SUMIFS(INDIRECT($A$3&"!$J:$J"),INDIRECT($A$3&"!$E:$E"),MONTH(Tab_Graph!N48),INDIRECT($A$3&"!$F:$F"),YEAR(Tab_Graph!N48))/DAY(DATE(YEAR(N48),MONTH(N48)+1,0))) ->  | O52: =IF(O48=0,NA(),SUMIFS(INDIRECT($A$3&"!$J:$J"),INDIRECT($A$3&"!$E:$E"),MONTH(Tab_Graph!O48),INDIRECT($A$3&"!$F:$F"),YEAR(Tab_Graph!O48))/DAY(DATE(YEAR(O48),MONTH(O48)+1,0))) ->  | P52: =IF(P48=0,NA(),SUMIFS(INDIRECT($A$3&"!$J:$J"),INDIRECT($A$3&"!$E:$E"),MONTH(Tab_Graph!P48),INDIRECT($A$3&"!$F:$F"),YEAR(Tab_Graph!P48))/DAY(DATE(YEAR(P48),MONTH(P48)+1,0))) ->  | Q52: =IF(Q48=0,NA(),SUMIFS(INDIRECT($A$3&"!$J:$J"),INDIRECT($A$3&"!$E:$E"),MONTH(Tab_Graph!Q48),INDIRECT($A$3&"!$F:$F"),YEAR(Tab_Graph!Q48))/DAY(DATE(YEAR(Q48),MONTH(Q48)+1,0))) ->  | R52: =IF(R48=0,NA(),SUMIFS(INDIRECT($A$3&"!$J:$J"),INDIRECT($A$3&"!$E:$E"),MONTH(Tab_Graph!R48),INDIRECT($A$3&"!$F:$F"),YEAR(Tab_Graph!R48))/DAY(DATE(YEAR(R48),MONTH(R48)+1,0))) ->  | S52: =IF(S48=0,NA(),SUMIFS(INDIRECT($A$3&"!$J:$J"),INDIRECT($A$3&"!$E:$E"),MONTH(Tab_Graph!S48),INDIRECT($A$3&"!$F:$F"),YEAR(Tab_Graph!S48))/DAY(DATE(YEAR(S48),MONTH(S48)+1,0))) ->  | T52: =IF(T48=0,NA(),SUMIFS(INDIRECT($A$3&"!$J:$J"),INDIRECT($A$3&"!$E:$E"),MONTH(Tab_Graph!T48),INDIRECT($A$3&"!$F:$F"),YEAR(Tab_Graph!T48))/DAY(DATE(YEAR(T48),MONTH(T48)+1,0))) ->  | U52: =IF(U48=0,NA(),SUMIFS(INDIRECT($A$3&"!$J:$J"),INDIRECT($A$3&"!$E:$E"),MONTH(Tab_Graph!U48),INDIRECT($A$3&"!$F:$F"),YEAR(Tab_Graph!U48))/DAY(DATE(YEAR(U48),MONTH(U48)+1,0))) ->  | V52: =IF(V48=0,NA(),SUMIFS(INDIRECT($A$3&"!$J:$J"),INDIRECT($A$3&"!$E:$E"),MONTH(Tab_Graph!V48),INDIRECT($A$3&"!$F:$F"),YEAR(Tab_Graph!V48))/DAY(DATE(YEAR(V48),MONTH(V48)+1,0))) ->  | W52: =IF(W48=0,NA(),SUMIFS(INDIRECT($A$3&"!$J:$J"),INDIRECT($A$3&"!$E:$E"),MONTH(Tab_Graph!W48),INDIRECT($A$3&"!$F:$F"),YEAR(Tab_Graph!W48))/DAY(DATE(YEAR(W48),MONTH(W48)+1,0))) ->  | X52: =IF(X48=0,NA(),SUMIFS(INDIRECT($A$3&"!$J:$J"),INDIRECT($A$3&"!$E:$E"),MONTH(Tab_Graph!X48),INDIRECT($A$3&"!$F:$F"),YEAR(Tab_Graph!X48))/DAY(DATE(YEAR(X48),MONTH(X48)+1,0))) ->  | Y52: =IF(Y48=0,NA(),SUMIFS(INDIRECT($A$3&"!$J:$J"),INDIRECT($A$3&"!$E:$E"),MONTH(Tab_Graph!Y48),INDIRECT($A$3&"!$F:$F"),YEAR(Tab_Graph!Y48))/DAY(DATE(YEAR(Y48),MONTH(Y48)+1,0))) ->  | Z52: =IF(Z48=0,NA(),SUMIFS(INDIRECT($A$3&"!$J:$J"),INDIRECT($A$3&"!$E:$E"),MONTH(Tab_Graph!Z48),INDIRECT($A$3&"!$F:$F"),YEAR(Tab_Graph!Z48))/DAY(DATE(YEAR(Z48),MONTH(Z48)+1,0))) ->  | AA52: =IF(AA48=0,NA(),SUMIFS(INDIRECT($A$3&"!$J:$J"),INDIRECT($A$3&"!$E:$E"),MONTH(Tab_Graph!AA48),INDIRECT($A$3&"!$F:$F"),YEAR(Tab_Graph!AA48))/DAY(DATE(YEAR(AA48),MONTH(AA48)+1,0))) ->  | AB52: =IF(AB48=0,NA(),SUMIFS(INDIRECT($A$3&"!$J:$J"),INDIRECT($A$3&"!$E:$E"),MONTH(Tab_Graph!AB48),INDIRECT($A$3&"!$F:$F"),YEAR(Tab_Graph!AB48))/DAY(DATE(YEAR(AB48),MONTH(AB48)+1,0))) ->  | AC52: =IF(AC48=0,NA(),SUMIFS(INDIRECT($A$3&"!$J:$J"),INDIRECT($A$3&"!$E:$E"),MONTH(Tab_Graph!AC48),INDIRECT($A$3&"!$F:$F"),YEAR(Tab_Graph!AC48))/DAY(DATE(YEAR(AC48),MONTH(AC48)+1,0))) ->  | AD52: =IF(AD48=0,NA(),SUMIFS(INDIRECT($A$3&"!$J:$J"),INDIRECT($A$3&"!$E:$E"),MONTH(Tab_Graph!AD48),INDIRECT($A$3&"!$F:$F"),YEAR(Tab_Graph!AD48))/DAY(DATE(YEAR(AD48),MONTH(AD48)+1,0))) ->  | AE52: =IF(AE48=0,NA(),SUMIFS(INDIRECT($A$3&"!$J:$J"),INDIRECT($A$3&"!$E:$E"),MONTH(Tab_Graph!AE48),INDIRECT($A$3&"!$F:$F"),YEAR(Tab_Graph!AE48))/DAY(DATE(YEAR(AE48),MONTH(AE48)+1,0))) ->  | AF52: =IF(AF48=0,NA(),SUMIFS(INDIRECT($A$3&"!$J:$J"),INDIRECT($A$3&"!$E:$E"),MONTH(Tab_Graph!AF48),INDIRECT($A$3&"!$F:$F"),YEAR(Tab_Graph!AF48))/DAY(DATE(YEAR(AF48),MONTH(AF48)+1,0))) ->  | AG52: =IF(AG48=0,NA(),SUMIFS(INDIRECT($A$3&"!$J:$J"),INDIRECT($A$3&"!$E:$E"),MONTH(Tab_Graph!AG48),INDIRECT($A$3&"!$F:$F"),YEAR(Tab_Graph!AG48))/DAY(DATE(YEAR(AG48),MONTH(AG48)+1,0))) ->  | AH52: =IF(AH48=0,NA(),SUMIFS(INDIRECT($A$3&"!$J:$J"),INDIRECT($A$3&"!$E:$E"),MONTH(Tab_Graph!AH48),INDIRECT($A$3&"!$F:$F"),YEAR(Tab_Graph!AH48))/DAY(DATE(YEAR(AH48),MONTH(AH48)+1,0))) ->  | AI52: =IF(AI48=0,NA(),SUMIFS(INDIRECT($A$3&"!$J:$J"),INDIRECT($A$3&"!$E:$E"),MONTH(Tab_Graph!AI48),INDIRECT($A$3&"!$F:$F"),YEAR(Tab_Graph!AI48))/DAY(DATE(YEAR(AI48),MONTH(AI48)+1,0))) ->  | AJ52: =IF(AJ48=0,NA(),SUMIFS(INDIRECT($A$3&"!$J:$J"),INDIRECT($A$3&"!$E:$E"),MONTH(Tab_Graph!AJ48),INDIRECT($A$3&"!$F:$F"),YEAR(Tab_Graph!AJ48))/DAY(DATE(YEAR(AJ48),MONTH(AJ48)+1,0))) ->  | AK52: =IF(AK48=0,NA(),SUMIFS(INDIRECT($A$3&"!$J:$J"),INDIRECT($A$3&"!$E:$E"),MONTH(Tab_Graph!AK48),INDIRECT($A$3&"!$F:$F"),YEAR(Tab_Graph!AK48))/DAY(DATE(YEAR(AK48),MONTH(AK48)+1,0))) ->  | AL52: =IF(AL48=0,NA(),SUMIFS(INDIRECT($A$3&"!$J:$J"),INDIRECT($A$3&"!$E:$E"),MONTH(Tab_Graph!AL48),INDIRECT($A$3&"!$F:$F"),YEAR(Tab_Graph!AL48))/DAY(DATE(YEAR(AL48),MONTH(AL48)+1,0))) ->  | AM52: =IF(AM48=0,NA(),SUMIFS(INDIRECT($A$3&"!$J:$J"),INDIRECT($A$3&"!$E:$E"),MONTH(Tab_Graph!AM48),INDIRECT($A$3&"!$F:$F"),YEAR(Tab_Graph!AM48))/DAY(DATE(YEAR(AM48),MONTH(AM48)+1,0))) ->  | AN52: =IF(AN48=0,NA(),SUMIFS(INDIRECT($A$3&"!$J:$J"),INDIRECT($A$3&"!$E:$E"),MONTH(Tab_Graph!AN48),INDIRECT($A$3&"!$F:$F"),YEAR(Tab_Graph!AN48))/DAY(DATE(YEAR(AN48),MONTH(AN48)+1,0))) -> 
A53: T Moyenne | B53: =AVERAGE(B49:B50) -> 2.1 | C53: =AVERAGE(C49:C50) -> 3.9 | D53: 8.6 | E53: 11.0 | F53: 15.4 | G53: 19.9 | H53: 18.0 | I53: 15.0 | J53: 13.1 | K53: 6.6 | L53: 5.1 | M53: 6.2
A54: Cumul des pluies | B54: =IF(B48="",NA(),B52) -> 1.1 | C54: =IF(C48="",NA(),B54+C52) -> 1.9 | D54: =IF(D48="",NA(),C54+D52) -> 2.8 | E54: 5.4 | F54: 7.1 | G54: 10.0 | H54: 11.7 | I54: 12.9 | J54: 14.4 | K54: 17.2 | L54: 19.8 | M54: 22.1
A55: Cumul de l'ensoleillement | B55: =IF(B48="",NA(),B51) -> 2.3 | C55: =IF(C48="",NA(),B55+C51) -> 4.8 | D55: =IF(D48="",NA(),C55+D51) -> 10.6 | E55: =IF(E48="",NA(),D55+E51) -> 14.8 | F55: =IF(F48="",NA(),E55+F51) -> 20.5 | G55: 29.1 | H55: 36.5 | I55: 41.6 | J55: 44.2 | K55: 45.8 | L55: 48.6 | M55: 49.8
A56: Normal T°C Min sur 10 ans | B56: =IF(B48=0,NA(),SUM(SUMIFS(INDIRECT($A$3&"!$G:$G"),INDIRECT($A$3&"!$E:$E"),MONTH(B48),INDIRECT($A$3&"!$F:$F"),YEAR(B48)),SUMIFS(INDIRECT($A$3&"!$G:$G"),INDIRECT($A$3&"!$E:$E"),MONTH(B48),INDIRECT($A$3&"!$F:$F"),YEAR(B48)-1),SUMIFS(INDIRECT($A$3&"!$G:$G"),INDIRECT($A$3&"!$E:$E"),MONTH(B48),INDIRECT($A$3&"!$F:$F"),YEAR(B48)-2),SUMIFS(INDIRECT($A$3&"!$G:$G"),INDIRECT($A$3&"!$E:$E"),MONTH(B48),INDIRECT($A$3&"!$F:$F"),YEAR(B48)-3),SUMIFS(INDIRECT($A$3&"!$G:$G"),INDIRECT($A$3&"!$E:$E"),MONTH(B48),INDIRECT($A$3&"!$F:$F"),YEAR(B48)-4),SUMIFS(INDIRECT($A$3&"!$G:$G"),INDIRECT($A$3&"!$E:$E"),MONTH(B48),INDIRECT($A$3&"!$F:$F"),YEAR(B48)-5),SUMIFS(INDIRECT($A$3&"!$G:$G"),INDIRECT($A$3&"!$E:$E"),MONTH(B48),INDIRECT($A$3&"!$F:$F"),YEAR(B48)-6),SUMIFS(INDIRECT($A$3&"!$G:$G"),INDIRECT($A$3&"!$E:$E"),MONTH(B48),INDIRECT($A$3&"!$F:$F"),YEAR(B48)-7),SUMIFS(INDIRECT($A$3&"!$G:$G"),INDIRECT($A$3&"!$E:$E"),MONTH(B48),INDIRECT($A$3&"!$F:$F"),YEAR(B48)-8),SUMIFS(INDIRECT($A$3&"!$G:$G"),INDIRECT($A$3&"!$E:$E"),MONTH(B48),INDIRECT($A$3&"!$F:$F"),YEAR(B48)-9))/(SUM(DAY(DATE(YEAR(B48),MONTH(B48)+1,0)),DAY(DATE(YEAR(B48)-1,MONTH(B48)+1,0)),DAY(DATE(YEAR(B48)-2,MONTH(B48)+1,0)),DAY(DATE(YEAR(B48)-3,MONTH(B48)+1,0)),DAY(DATE(YEAR(B48)-4,MONTH(B48)+1,0)),DAY(DATE(YEAR(B48)-5,MONTH(B48)+1,0)),DAY(DATE(YEAR(B48)-6,MONTH(B48)+1,0)),DAY(DATE(YEAR(B48)-7,MONTH(B48)+1,0)),DAY(DATE(YEAR(B48)-8,MONTH(B48)+1,0)),DAY(DATE(YEAR(B48)-9,MONTH(B48)+1,0))))) -> 0.38 | C56: 1.60 | D56: 3.29 | E56: 6.11 | F56: 8.51 | G56: 10.05 | H56: 9.83 | I56: 7.80 | J56: 6.14 | K56: 3.66 | L56: 0.76 | M56: 1.02
A57: Normal T°C Max sur 10 ans | B57: =IF(B48=0,NA(),SUM(SUMIFS(INDIRECT($A$3&"!$H:$H"),INDIRECT($A$3&"!$E:$E"),MONTH(B48),INDIRECT($A$3&"!$F:$F"),YEAR(B48)),SUMIFS(INDIRECT($A$3&"!$H:$H"),INDIRECT($A$3&"!$E:$E"),MONTH(B48),INDIRECT($A$3&"!$F:$F"),YEAR(B48)-1),SUMIFS(INDIRECT($A$3&"!$H:$H"),INDIRECT($A$3&"!$E:$E"),MONTH(B48),INDIRECT($A$3&"!$F:$F"),YEAR(B48)-2),SUMIFS(INDIRECT($A$3&"!$H:$H"),INDIRECT($A$3&"!$E:$E"),MONTH(B48),INDIRECT($A$3&"!$F:$F"),YEAR(B48)-3),SUMIFS(INDIRECT($A$3&"!$H:$H"),INDIRECT($A$3&"!$E:$E"),MONTH(B48),INDIRECT($A$3&"!$F:$F"),YEAR(B48)-4),SUMIFS(INDIRECT($A$3&"!$H:$H"),INDIRECT($A$3&"!$E:$E"),MONTH(B48),INDIRECT($A$3&"!$F:$F"),YEAR(B48)-5),SUMIFS(INDIRECT($A$3&"!$H:$H"),INDIRECT($A$3&"!$E:$E"),MONTH(B48),INDIRECT($A$3&"!$F:$F"),YEAR(B48)-6),SUMIFS(INDIRECT($A$3&"!$H:$H"),INDIRECT($A$3&"!$E:$E"),MONTH(B48),INDIRECT($A$3&"!$F:$F"),YEAR(B48)-7),SUMIFS(INDIRECT($A$3&"!$H:$H"),INDIRECT($A$3&"!$E:$E"),MONTH(B48),INDIRECT($A$3&"!$F:$F"),YEAR(B48)-8),SUMIFS(INDIRECT($A$3&"!$H:$H"),INDIRECT($A$3&"!$E:$E"),MONTH(B48),INDIRECT($A$3&"!$F:$F"),YEAR(B48)-9))/(SUM(DAY(DATE(YEAR(B48),MONTH(B48)+1,0)),DAY(DATE(YEAR(B48)-1,MONTH(B48)+1,0)),DAY(DATE(YEAR(B48)-2,MONTH(B48)+1,0)),DAY(DATE(YEAR(B48)-3,MONTH(B48)+1,0)),DAY(DATE(YEAR(B48)-4,MONTH(B48)+1,0)),DAY(DATE(YEAR(B48)-5,MONTH(B48)+1,0)),DAY(DATE(YEAR(B48)-6,MONTH(B48)+1,0)),DAY(DATE(YEAR(B48)-7,MONTH(B48)+1,0)),DAY(DATE(YEAR(B48)-8,MONTH(B48)+1,0)),DAY(DATE(YEAR(B48)-9,MONTH(B48)+1,0))))) -> 5.7 | C57: 8.7 | D57: 12.7 | E57: 14.8 | F57: 17.3 | G57: 19.6 | H57: 18.7 | I57: 16.7 | J57: 12.7 | K57: 9.2 | L57: 6.0 | M57: 5.9
A58: Normal Ensoleillement sur 10 ans | B58: =IF(B48=0,NA(),SUM(SUMIFS(INDIRECT($A$3&"!$I:$I"),INDIRECT($A$3&"!$E:$E"),MONTH(B48),INDIRECT($A$3&"!$F:$F"),YEAR(B48)),SUMIFS(INDIRECT($A$3&"!$I:$I"),INDIRECT($A$3&"!$E:$E"),MONTH(B48),INDIRECT($A$3&"!$F:$F"),YEAR(B48)-1),SUMIFS(INDIRECT($A$3&"!$I:$I"),INDIRECT($A$3&"!$E:$E"),MONTH(B48),INDIRECT($A$3&"!$F:$F"),YEAR(B48)-2),SUMIFS(INDIRECT($A$3&"!$I:$I"),INDIRECT($A$3&"!$E:$E"),MONTH(B48),INDIRECT($A$3&"!$F:$F"),YEAR(B48)-3),SUMIFS(INDIRECT($A$3&"!$I:$I"),INDIRECT($A$3&"!$E:$E"),MONTH(B48),INDIRECT($A$3&"!$F:$F"),YEAR(B48)-4),SUMIFS(INDIRECT($A$3&"!$I:$I"),INDIRECT($A$3&"!$E:$E"),MONTH(B48),INDIRECT($A$3&"!$F:$F"),YEAR(B48)-5),SUMIFS(INDIRECT($A$3&"!$I:$I"),INDIRECT($A$3&"!$E:$E"),MONTH(B48),INDIRECT($A$3&"!$F:$F"),YEAR(B48)-6),SUMIFS(INDIRECT($A$3&"!$I:$I"),INDIRECT($A$3&"!$E:$E"),MONTH(B48),INDIRECT($A$3&"!$F:$F"),YEAR(B48)-7),SUMIFS(INDIRECT($A$3&"!$I:$I"),INDIRECT($A$3&"!$E:$E"),MONTH(B48),INDIRECT($A$3&"!$F:$F"),YEAR(B48)-8),SUMIFS(INDIRECT($A$3&"!$I:$I"),INDIRECT($A$3&"!$E:$E"),MONTH(B48),INDIRECT($A$3&"!$F:$F"),YEAR(B48)-9))/(SUM(DAY(DATE(YEAR(B48),MONTH(B48)+1,0)),DAY(DATE(YEAR(B48)-1,MONTH(B48)+1,0)),DAY(DATE(YEAR(B48)-2,MONTH(B48)+1,0)),DAY(DATE(YEAR(B48)-3,MONTH(B48)+1,0)),DAY(DATE(YEAR(B48)-4,MONTH(B48)+1,0)),DAY(DATE(YEAR(B48)-5,MONTH(B48)+1,0)),DAY(DATE(YEAR(B48)-6,MONTH(B48)+1,0)),DAY(DATE(YEAR(B48)-7,MONTH(B48)+1,0)),DAY(DATE(YEAR(B48)-8,MONTH(B48)+1,0)),DAY(DATE(YEAR(B48)-9,MONTH(B48)+1,0))))) -> 2.0 | C58: 3.5 | D58: 5.4 | E58: 5.0 | F58: 5.3 | G58: 5.8 | H58: 4.8 | I58: 4.7 | J58: 2.9 | K58: 1.9 | L58: 1.8 | M58: 1.6
A59: Normal Pluviométrie sur 10 ans | B59: =IF(B48=0,NA(),SUM(SUMIFS(INDIRECT($A$3&"!$J:$J"),INDIRECT($A$3&"!$E:$E"),MONTH(B48),INDIRECT($A$3&"!$F:$F"),YEAR(B48)),SUMIFS(INDIRECT($A$3&"!$J:$J"),INDIRECT($A$3&"!$E:$E"),MONTH(B48),INDIRECT($A$3&"!$F:$F"),YEAR(B48)-1),SUMIFS(INDIRECT($A$3&"!$J:$J"),INDIRECT($A$3&"!$E:$E"),MONTH(B48),INDIRECT($A$3&"!$F:$F"),YEAR(B48)-2),SUMIFS(INDIRECT($A$3&"!$J:$J"),INDIRECT($A$3&"!$E:$E"),MONTH(B48),INDIRECT($A$3&"!$F:$F"),YEAR(B48)-3),SUMIFS(INDIRECT($A$3&"!$J:$J"),INDIRECT($A$3&"!$E:$E"),MONTH(B48),INDIRECT($A$3&"!$F:$F"),YEAR(B48)-4),SUMIFS(INDIRECT($A$3&"!$J:$J"),INDIRECT($A$3&"!$E:$E"),MONTH(B48),INDIRECT($A$3&"!$F:$F"),YEAR(B48)-5),SUMIFS(INDIRECT($A$3&"!$J:$J"),INDIRECT($A$3&"!$E:$E"),MONTH(B48),INDIRECT($A$3&"!$F:$F"),YEAR(B48)-6),SUMIFS(INDIRECT($A$3&"!$J:$J"),INDIRECT($A$3&"!$E:$E"),MONTH(B48),INDIRECT($A$3&"!$F:$F"),YEAR(B48)-7),SUMIFS(INDIRECT($A$3&"!$J:$J"),INDIRECT($A$3&"!$E:$E"),MONTH(B48),INDIRECT($A$3&"!$F:$F"),YEAR(B48)-8),SUMIFS(INDIRECT($A$3&"!$J:$J"),INDIRECT($A$3&"!$E:$E"),MONTH(B48),INDIRECT($A$3&"!$F:$F"),YEAR(B48)-9))/(SUM(DAY(DATE(YEAR(B48),MONTH(B48)+1,0)),DAY(DATE(YEAR(B48)-1,MONTH(B48)+1,0)),DAY(DATE(YEAR(B48)-2,MONTH(B48)+1,0)),DAY(DATE(YEAR(B48)-3,MONTH(B48)+1,0)),DAY(DATE(YEAR(B48)-4,MONTH(B48)+1,0)),DAY(DATE(YEAR(B48)-5,MONTH(B48)+1,0)),DAY(DATE(YEAR(B48)-6,MONTH(B48)+1,0)),DAY(DATE(YEAR(B48)-7,MONTH(B48)+1,0)),DAY(DATE(YEAR(B48)-8,MONTH(B48)+1,0)),DAY(DATE(YEAR(B48)-9,MONTH(B48)+1,0))))) -> 1.3 | C59: 1.2 | D59: 0.8 | E59: 1.4 | F59: 1.5 | G59: 1.7 | H59: 1.8 | I59: 1.0 | J59: 1.4 | K59: 1.7 | L59: 2.1 | M59: 1.3
A60: Normal T°C Moyenne sur 10 ans | B60: =AVERAGE(B56:B57) -> 3.1 | C60: =AVERAGE(C56:C57) -> 5.1 | D60: 8.0 | E60: 10.5 | F60: 12.9 | G60: 14.8 | H60: 14.3 | I60: 12.2 | J60: 9.4 | K60: 6.4 | L60: 3.4 | M60: 3.5
A61: Cumul des pluies Normal | B61: =IF(B48="",NA(),B59) -> 1.3 | C61: =IF(C48="",NA(),B61+C59) -> 2.5 | D61: =IF(D48="",NA(),C61+D59) -> 3.3 | E61: =IF(E48="",NA(),D61+E59) -> 4.7 | F61: =IF(F48="",NA(),E61+F59) -> 6.3 | G61: 7.9 | H61: 9.7 | I61: 10.7 | J61: 12.1 | K61: 13.8 | L61: 15.9 | M61: 17.1
A62: Cumul de l'ensoleillement Normal | B62: =IF(B48="",NA(),B58) -> 2.0 | C62: =IF(C48="",NA(),B62+C58) -> 5.5 | D62: =IF(D48="",NA(),C62+D58) -> 10.9 | E62: 16.0 | F62: 21.3 | G62: 27.1 | H62: 31.9 | I62: 36.6 | J62: 39.5 | K62: 41.4 | L62: 43.2 | M62: 44.8
E66: =MONTH(B48) -> 2.0 | F66: =SUMIFS(INDIRECT($A$3&"!$G:$G"),INDIRECT($A$3&"!$E:$E"),MONTH(B48),INDIRECT($A$3&"!$F:$F"),YEAR(B48))/EOMONTH(B48,0) -> -0.0 | G66: =YEAR(B48)&MONTH(B48) -> 20132
E67: =DAY(DATE(YEAR(A48)-1,MONTH(A48)+1,0)) -> 31.0 | F67: =DAY(DATE(YEAR(B48),MONTH(B48)+1,0)) -> 28.0 | G67: 31.0 | H67: 30.0 | I67: 31.0 | J67: 30.0 | K67: 31.0
F68: =DAY(DATE(YEAR(G48)-1,MONTH(G48)+1,0)) -> 31.0
F69: =DAY(DATE(YEAR(G48)-2,MONTH(G48)+1,0)) -> 31
F70: =DAY(DATE(YEAR(G48)-3,MONTH(G48)+1,0)) -> 31
B71: 1 | C71: Janvier | D71: =VLOOKUP(D5,B71:C82,2,) -> Février | F71: =DAY(DATE(YEAR(G48),MONTH(G48)+1,0)) -> 31
B72: 2 | C72: Février | D72: =VLOOKUP(D6,B71:C82,2,) -> Février | F72: =DAY(DATE(YEAR(G48),MONTH(G48)+1,0)) -> 31 | G72: =SUMIFS(INDIRECT($A$3&"!$G:$G"),INDIRECT($A$3&"!$E:$E"),MONTH(B48),INDIRECT($A$3&"!$F:$F"),YEAR(B48)) -> -20 | I72: =SUM(DAY(DATE(YEAR(B48),MONTH(B48)+1,0))) -> 28
B73: 3 | C73: Mars | G73: =SUMIFS(INDIRECT($A$3&"!$G:$G"),INDIRECT($A$3&"!$E:$E"),MONTH(B48),INDIRECT($A$3&"!$F:$F"),YEAR(B48)-1) -> -78.7 | I73: =SUM(DAY(DATE(YEAR(B48)-1,MONTH(B48)+1,0))) -> 29
B74: 4 | C74: Avril | G74: =SUMIFS(INDIRECT($A$3&"!$G:$G"),INDIRECT($A$3&"!$E:$E"),MONTH(B48),INDIRECT($A$3&"!$F:$F"),YEAR(B48)-2) -> 79.8 | I74: =SUM(DAY(DATE(YEAR(B48)-2,MONTH(B48)+1,0))) -> 28 | Y74: =CONCATENATE("Ensoleillement à ",A3," de ",D71," ",E5," à ",D72," ",E6) -> Ensoleillement à Beauvais de Février 2013 à Février 2014
B75: 5 | C75: Mai | G75: =SUMIFS(INDIRECT($A$3&"!$G:$G"),INDIRECT($A$3&"!$E:$E"),MONTH(B48),INDIRECT($A$3&"!$F:$F"),YEAR(B48)-3) -> 9.4 | I75: =SUM(DAY(DATE(YEAR(B48)-3,MONTH(B48)+1,0))) -> 28
B76: 6 | C76: Juin | G76: =SUMIFS(INDIRECT($A$3&"!$G:$G"),INDIRECT($A$3&"!$E:$E"),MONTH(B48),INDIRECT($A$3&"!$F:$F"),YEAR(B48)-4) -> -3.5 | I76: =SUM(DAY(DATE(YEAR(B48)-4,MONTH(B48)+1,0))) -> 28 | L76: =CONCATENATE("Pluviométrie à ",A3," de ",D71," ",E5," à ",D72," ",E6) -> Pluviométrie à Beauvais de Février 2013 à Février 2014
B77: 7 | C77: Juillet | G77: =SUMIFS(INDIRECT($A$3&"!$G:$G"),INDIRECT($A$3&"!$E:$E"),MONTH(B48),INDIRECT($A$3&"!$F:$F"),YEAR(B48)-5) -> 22.3 | I77: =SUM(DAY(DATE(YEAR(B48)-5,MONTH(B48)+1,0))) -> 29
B78: 8 | C78: Août | G78: =SUMIFS(INDIRECT($A$3&"!$G:$G"),INDIRECT($A$3&"!$E:$E"),MONTH(B48),INDIRECT($A$3&"!$F:$F"),YEAR(B48)-6) -> 98.8 | I78: =SUM(DAY(DATE(YEAR(B48),MONTH(B48)+1,0))) -> 28
B79: 9 | C79: Septembre | E79: =CONCATENATE("Température à ",A3," de ",D71," ",E5," à ",D72," ",E6) -> Température à Beauvais de Février 2013 à Février 2014 | G79: =SUMIFS(INDIRECT($A$3&"!$G:$G"),INDIRECT($A$3&"!$E:$E"),MONTH(B48),INDIRECT($A$3&"!$F:$F"),YEAR(B48)-7) -> -1 | I79: =SUM(DAY(DATE(YEAR(B48),MONTH(B48)+1,0))) -> 28
B80: 10 | C80: Octobre | G80: =SUMIFS(INDIRECT($A$3&"!$G:$G"),INDIRECT($A$3&"!$E:$E"),MONTH(B48),INDIRECT($A$3&"!$F:$F"),YEAR(B48)-8) -> 0 | I80: =SUM(DAY(DATE(YEAR(B48),MONTH(B48)+1,0))) -> 28
B81: 11 | C81: Novembre | G81: =SUMIFS(INDIRECT($A$3&"!$G:$G"),INDIRECT($A$3&"!$E:$E"),MONTH(B48),INDIRECT($A$3&"!$F:$F"),YEAR(B48)-9) -> 0 | I81: =SUM(DAY(DATE(YEAR(B48),MONTH(B48)+1,0))) -> 28
B82: 12 | C82: Décembre | G82: =SUM(G72:G81)/(30*10) -> 0.357 | I82: =SUM(DAY(DATE(YEAR(B48),MONTH(B48)+1,0))) -> 28
B87: =MONTH(B48) -> 2
B88: =YEAR(B48) -> 2013
A91: 10 | B91: 10
A92: =DATE(D8,A91,B91) -> 2011-10-10
A93: =DATE(D9,A91,B91) -> 2015-10-10
B94: =IF(EDATE(A92,0)<EDATE(A93,0),EDATE(A92,0),NA()) -> 2011-10-10 | C94: =IF(EDATE(A92,12)<EDATE(A93,0),EDATE(A92,12),NA()) -> 2012-10-10 | D94: =IF(EDATE(A92,24)<EDATE(A93,0),EDATE(A92,24),NA()) -> 2013-10-10 | E94: =IF(EDATE(A92,36)<EDATE(A93,0),EDATE(A92,36),NA()) -> 2014-10-10 | F94: =IF(EDATE(A92,48)<EDATE(A93,0),EDATE(A92,48),NA()) ->  | G94: =IF(EDATE(A92,60)<EDATE(A93,0),EDATE(A92,60),NA()) ->  | H94: =IF(EDATE(A92,72)<EDATE(A93,0),EDATE(A92,72),NA()) ->  | I94: =IF(EDATE(A92,84)<EDATE(A93,0),EDATE(A92,84),NA()) ->  | J94: =IF(EDATE(A92,96)<EDATE(A93,0),EDATE(A92,96),NA()) ->  | K94: =IF(EDATE(A92,108)<EDATE(A93,0),EDATE(A92,108),NA()) ->  | L94: =IF(EDATE(A92,120)<EDATE(A93,0),EDATE(A92,120),NA()) ->  | M94: =IF(EDATE(A92,132)<EDATE(A93,0),EDATE(A92,132),NA()) ->  | N94: =IF(EDATE(A92,144)<EDATE(A93,0),EDATE(A92,144),NA()) ->  | O94: =IF(EDATE(A92,156)<EDATE(A93,0),EDATE(A92,156),NA()) ->  | P94: =IF(EDATE(A92,168)<EDATE(A93,0),EDATE(A92,168),NA()) ->  | Q94: =IF(EDATE(A92,180)<EDATE(A93,0),EDATE(A92,180),NA()) ->  | R94: =IF(EDATE(A92,192)<EDATE(A93,0),EDATE(A92,192),NA()) ->  | S94: =IF(EDATE(A92,204)<EDATE(A93,0),EDATE(A92,204),NA()) ->  | T94: =IF(EDATE(A92,216)<EDATE(A93,0),EDATE(A92,216),NA()) ->  | U94: =IF(EDATE(A92,228)<EDATE(A93,0),EDATE(A92,228),NA()) ->  | V94: =IF(EDATE(A92,240)<EDATE(A93,0),EDATE(A92,240),NA()) ->  | W94: =IF(EDATE(A92,252)<EDATE(A93,0),EDATE(A92,252),NA()) ->  | X94: =IF(EDATE(A92,264)<EDATE(A93,0),EDATE(A92,264),NA()) ->  | Y94: =IF(EDATE(A92,276)<EDATE(A93,0),EDATE(A92,276),NA()) ->  | Z94: =IF(EDATE(A92,288)<EDATE(A93,0),EDATE(A92,288),NA()) ->  | AA94: =IF(EDATE(A92,300)<EDATE(A93,0),EDATE(A92,300),NA()) ->  | AB94: =IF(EDATE(A92,312)<EDATE(A93,0),EDATE(A92,312),NA()) ->  | AC94: =IF(EDATE(A92,324)<EDATE(A93,0),EDATE(A92,324),NA()) ->  | AD94: =IF(EDATE(A92,336)<EDATE(A93,0),EDATE(A92,336),NA()) ->  | AE94: =IF(EDATE(A92,348)<EDATE(A93,0),EDATE(A92,348),NA()) -> 
A95: T°C Min | B95: =IF(B94=0,NA(),AVERAGEIFS(INDIRECT($A$3&"!$G:$G"),INDIRECT($A$3&"!$F:$F"),YEAR(Tab_Graph!B94))) -> 6.8 | C95: =IF(C94=0,NA(),AVERAGEIFS(INDIRECT($A$3&"!$G:$G"),INDIRECT($A$3&"!$F:$F"),YEAR(Tab_Graph!C94))) -> 6.0 | D95: =IF(D94=0,NA(),AVERAGEIFS(INDIRECT($A$3&"!$G:$G"),INDIRECT($A$3&"!$F:$F"),YEAR(Tab_Graph!D94))) -> 5.9 | E95: =IF(E94=0,NA(),AVERAGEIFS(INDIRECT($A$3&"!$G:$G"),INDIRECT($A$3&"!$F:$F"),YEAR(Tab_Graph!E94))) -> 7.0 | F95: =IF(F94=0,NA(),AVERAGEIFS(INDIRECT($A$3&"!$G:$G"),INDIRECT($A$3&"!$F:$F"),YEAR(Tab_Graph!F94))) ->  | G95: =IF(G94=0,NA(),AVERAGEIFS(INDIRECT($A$3&"!$G:$G"),INDIRECT($A$3&"!$F:$F"),YEAR(Tab_Graph!G94))) ->  | H95: =IF(H94=0,NA(),AVERAGEIFS(INDIRECT($A$3&"!$G:$G"),INDIRECT($A$3&"!$F:$F"),YEAR(Tab_Graph!H94))) ->  | I95: =IF(I94=0,NA(),AVERAGEIFS(INDIRECT($A$3&"!$G:$G"),INDIRECT($A$3&"!$F:$F"),YEAR(Tab_Graph!I94))) ->  | J95: =IF(J94=0,NA(),AVERAGEIFS(INDIRECT($A$3&"!$G:$G"),INDIRECT($A$3&"!$F:$F"),YEAR(Tab_Graph!J94))) ->  | K95: =IF(K94=0,NA(),AVERAGEIFS(INDIRECT($A$3&"!$G:$G"),INDIRECT($A$3&"!$F:$F"),YEAR(Tab_Graph!K94))) ->  | L95: =IF(L94=0,NA(),AVERAGEIFS(INDIRECT($A$3&"!$G:$G"),INDIRECT($A$3&"!$F:$F"),YEAR(Tab_Graph!L94))) ->  | M95: =IF(M94=0,NA(),AVERAGEIFS(INDIRECT($A$3&"!$G:$G"),INDIRECT($A$3&"!$F:$F"),YEAR(Tab_Graph!M94))) ->  | N95: =IF(N94=0,NA(),AVERAGEIFS(INDIRECT($A$3&"!$G:$G"),INDIRECT($A$3&"!$F:$F"),YEAR(Tab_Graph!N94))) ->  | O95: =IF(O94=0,NA(),AVERAGEIFS(INDIRECT($A$3&"!$G:$G"),INDIRECT($A$3&"!$F:$F"),YEAR(Tab_Graph!O94))) ->  | P95: =IF(P94=0,NA(),AVERAGEIFS(INDIRECT($A$3&"!$G:$G"),INDIRECT($A$3&"!$F:$F"),YEAR(Tab_Graph!P94))) ->  | Q95: =IF(Q94=0,NA(),AVERAGEIFS(INDIRECT($A$3&"!$G:$G"),INDIRECT($A$3&"!$F:$F"),YEAR(Tab_Graph!Q94))) ->  | R95: =IF(R94=0,NA(),AVERAGEIFS(INDIRECT($A$3&"!$G:$G"),INDIRECT($A$3&"!$F:$F"),YEAR(Tab_Graph!R94))) ->  | S95: =IF(S94=0,NA(),AVERAGEIFS(INDIRECT($A$3&"!$G:$G"),INDIRECT($A$3&"!$F:$F"),YEAR(Tab_Graph!S94))) ->  | T95: =IF(T94=0,NA(),AVERAGEIFS(INDIRECT($A$3&"!$G:$G"),INDIRECT($A$3&"!$F:$F"),YEAR(Tab_Graph!T94))) ->  | U95: =IF(U94=0,NA(),AVERAGEIFS(INDIRECT($A$3&"!$G:$G"),INDIRECT($A$3&"!$F:$F"),YEAR(Tab_Graph!U94))) ->  | V95: =IF(V94=0,NA(),AVERAGEIFS(INDIRECT($A$3&"!$G:$G"),INDIRECT($A$3&"!$F:$F"),YEAR(Tab_Graph!V94))) ->  | W95: =IF(W94=0,NA(),AVERAGEIFS(INDIRECT($A$3&"!$G:$G"),INDIRECT($A$3&"!$F:$F"),YEAR(Tab_Graph!W94))) ->  | X95: =IF(X94=0,NA(),AVERAGEIFS(INDIRECT($A$3&"!$G:$G"),INDIRECT($A$3&"!$F:$F"),YEAR(Tab_Graph!X94))) ->  | Y95: =IF(Y94=0,NA(),AVERAGEIFS(INDIRECT($A$3&"!$G:$G"),INDIRECT($A$3&"!$F:$F"),YEAR(Tab_Graph!Y94))) ->  | Z95: =IF(Z94=0,NA(),AVERAGEIFS(INDIRECT($A$3&"!$G:$G"),INDIRECT($A$3&"!$F:$F"),YEAR(Tab_Graph!Z94))) ->  | AA95: =IF(AA94=0,NA(),AVERAGEIFS(INDIRECT($A$3&"!$G:$G"),INDIRECT($A$3&"!$F:$F"),YEAR(Tab_Graph!AA94))) ->  | AB95: =IF(AB94=0,NA(),AVERAGEIFS(INDIRECT($A$3&"!$G:$G"),INDIRECT($A$3&"!$F:$F"),YEAR(Tab_Graph!AB94))) ->  | AC95: =IF(AC94=0,NA(),AVERAGEIFS(INDIRECT($A$3&"!$G:$G"),INDIRECT($A$3&"!$F:$F"),YEAR(Tab_Graph!AC94))) ->  | AD95: =IF(AD94=0,NA(),AVERAGEIFS(INDIRECT($A$3&"!$G:$G"),INDIRECT($A$3&"!$F:$F"),YEAR(Tab_Graph!AD94))) ->  | AE95: =IF(AE94=0,NA(),AVERAGEIFS(INDIRECT($A$3&"!$G:$G"),INDIRECT($A$3&"!$F:$F"),YEAR(Tab_Graph!AE94))) -> 
A96: T°C Max | B96: =IF(B94=0,NA(),AVERAGEIFS(INDIRECT($A$3&"!$H:$H"),INDIRECT($A$3&"!$F:$F"),YEAR(Tab_Graph!B94))) -> 16.4 | C96: =IF(C94=0,NA(),AVERAGEIFS(INDIRECT($A$3&"!$H:$H"),INDIRECT($A$3&"!$F:$F"),YEAR(Tab_Graph!C94))) -> 15.1 | D96: =IF(D94=0,NA(),AVERAGEIFS(INDIRECT($A$3&"!$H:$H"),INDIRECT($A$3&"!$F:$F"),YEAR(Tab_Graph!D94))) -> 14.4 | E96: =IF(E94=0,NA(),AVERAGEIFS(INDIRECT($A$3&"!$H:$H"),INDIRECT($A$3&"!$F:$F"),YEAR(Tab_Graph!E94))) -> 16.2 | F96: =IF(F94=0,NA(),AVERAGEIFS(INDIRECT($A$3&"!$H:$H"),INDIRECT($A$3&"!$F:$F"),YEAR(Tab_Graph!F94))) ->  | G96: =IF(G94=0,NA(),AVERAGEIFS(INDIRECT($A$3&"!$H:$H"),INDIRECT($A$3&"!$F:$F"),YEAR(Tab_Graph!G94))) ->  | H96: =IF(H94=0,NA(),AVERAGEIFS(INDIRECT($A$3&"!$H:$H"),INDIRECT($A$3&"!$F:$F"),YEAR(Tab_Graph!H94))) ->  | I96: =IF(I94=0,NA(),AVERAGEIFS(INDIRECT($A$3&"!$H:$H"),INDIRECT($A$3&"!$F:$F"),YEAR(Tab_Graph!I94))) ->  | J96: =IF(J94=0,NA(),AVERAGEIFS(INDIRECT($A$3&"!$H:$H"),INDIRECT($A$3&"!$F:$F"),YEAR(Tab_Graph!J94))) ->  | K96: =IF(K94=0,NA(),AVERAGEIFS(INDIRECT($A$3&"!$H:$H"),INDIRECT($A$3&"!$F:$F"),YEAR(Tab_Graph!K94))) ->  | L96: =IF(L94=0,NA(),AVERAGEIFS(INDIRECT($A$3&"!$H:$H"),INDIRECT($A$3&"!$F:$F"),YEAR(Tab_Graph!L94))) ->  | M96: =IF(M94=0,NA(),AVERAGEIFS(INDIRECT($A$3&"!$H:$H"),INDIRECT($A$3&"!$F:$F"),YEAR(Tab_Graph!M94))) ->  | N96: =IF(N94=0,NA(),AVERAGEIFS(INDIRECT($A$3&"!$H:$H"),INDIRECT($A$3&"!$F:$F"),YEAR(Tab_Graph!N94))) ->  | O96: =IF(O94=0,NA(),AVERAGEIFS(INDIRECT($A$3&"!$H:$H"),INDIRECT($A$3&"!$F:$F"),YEAR(Tab_Graph!O94))) ->  | P96: =IF(P94=0,NA(),AVERAGEIFS(INDIRECT($A$3&"!$H:$H"),INDIRECT($A$3&"!$F:$F"),YEAR(Tab_Graph!P94))) ->  | Q96: =IF(Q94=0,NA(),AVERAGEIFS(INDIRECT($A$3&"!$H:$H"),INDIRECT($A$3&"!$F:$F"),YEAR(Tab_Graph!Q94))) ->  | R96: =IF(R94=0,NA(),AVERAGEIFS(INDIRECT($A$3&"!$H:$H"),INDIRECT($A$3&"!$F:$F"),YEAR(Tab_Graph!R94))) ->  | S96: =IF(S94=0,NA(),AVERAGEIFS(INDIRECT($A$3&"!$H:$H"),INDIRECT($A$3&"!$F:$F"),YEAR(Tab_Graph!S94))) ->  | T96: =IF(T94=0,NA(),AVERAGEIFS(INDIRECT($A$3&"!$H:$H"),INDIRECT($A$3&"!$F:$F"),YEAR(Tab_Graph!T94))) ->  | U96: =IF(U94=0,NA(),AVERAGEIFS(INDIRECT($A$3&"!$H:$H"),INDIRECT($A$3&"!$F:$F"),YEAR(Tab_Graph!U94))) ->  | V96: =IF(V94=0,NA(),AVERAGEIFS(INDIRECT($A$3&"!$H:$H"),INDIRECT($A$3&"!$F:$F"),YEAR(Tab_Graph!V94))) ->  | W96: =IF(W94=0,NA(),AVERAGEIFS(INDIRECT($A$3&"!$H:$H"),INDIRECT($A$3&"!$F:$F"),YEAR(Tab_Graph!W94))) ->  | X96: =IF(X94=0,NA(),AVERAGEIFS(INDIRECT($A$3&"!$H:$H"),INDIRECT($A$3&"!$F:$F"),YEAR(Tab_Graph!X94))) ->  | Y96: =IF(Y94=0,NA(),AVERAGEIFS(INDIRECT($A$3&"!$H:$H"),INDIRECT($A$3&"!$F:$F"),YEAR(Tab_Graph!Y94))) ->  | Z96: =IF(Z94=0,NA(),AVERAGEIFS(INDIRECT($A$3&"!$H:$H"),INDIRECT($A$3&"!$F:$F"),YEAR(Tab_Graph!Z94))) ->  | AA96: =IF(AA94=0,NA(),AVERAGEIFS(INDIRECT($A$3&"!$H:$H"),INDIRECT($A$3&"!$F:$F"),YEAR(Tab_Graph!AA94))) ->  | AB96: =IF(AB94=0,NA(),AVERAGEIFS(INDIRECT($A$3&"!$H:$H"),INDIRECT($A$3&"!$F:$F"),YEAR(Tab_Graph!AB94))) ->  | AC96: =IF(AC94=0,NA(),AVERAGEIFS(INDIRECT($A$3&"!$H:$H"),INDIRECT($A$3&"!$F:$F"),YEAR(Tab_Graph!AC94))) ->  | AD96: =IF(AD94=0,NA(),AVERAGEIFS(INDIRECT($A$3&"!$H:$H"),INDIRECT($A$3&"!$F:$F"),YEAR(Tab_Graph!AD94))) ->  | AE96: =IF(AE94=0,NA(),AVERAGEIFS(INDIRECT($A$3&"!$H:$H"),INDIRECT($A$3&"!$F:$F"),YEAR(Tab_Graph!AE94))) -> 
A97: Ensoleillement | B97: =IF(B94=0,NA(),SUMIFS(INDIRECT($A$3&"!$I:$I"),INDIRECT($A$3&"!$F:$F"),YEAR(Tab_Graph!B94))/365) -> 4.9 | C97: =IF(C94=0,NA(),SUMIFS(INDIRECT($A$3&"!$I:$I"),INDIRECT($A$3&"!$F:$F"),YEAR(Tab_Graph!C94))/365) -> 4.4 | D97: =IF(D94=0,NA(),SUMIFS(INDIRECT($A$3&"!$I:$I"),INDIRECT($A$3&"!$F:$F"),YEAR(Tab_Graph!D94))/365) -> 4.2 | E97: =IF(E94=0,NA(),SUMIFS(INDIRECT($A$3&"!$I:$I"),INDIRECT($A$3&"!$F:$F"),YEAR(Tab_Graph!E94))/365) -> 4.4 | F97: =IF(F94=0,NA(),SUMIFS(INDIRECT($A$3&"!$I:$I"),INDIRECT($A$3&"!$F:$F"),YEAR(Tab_Graph!F94))/365) ->  | G97: =IF(G94=0,NA(),SUMIFS(INDIRECT($A$3&"!$I:$I"),INDIRECT($A$3&"!$F:$F"),YEAR(Tab_Graph!G94))/365) ->  | H97: =IF(H94=0,NA(),SUMIFS(INDIRECT($A$3&"!$I:$I"),INDIRECT($A$3&"!$F:$F"),YEAR(Tab_Graph!H94))/365) ->  | I97: =IF(I94=0,NA(),SUMIFS(INDIRECT($A$3&"!$I:$I"),INDIRECT($A$3&"!$F:$F"),YEAR(Tab_Graph!I94))/365) ->  | J97: =IF(J94=0,NA(),SUMIFS(INDIRECT($A$3&"!$I:$I"),INDIRECT($A$3&"!$F:$F"),YEAR(Tab_Graph!J94))/365) ->  | K97: =IF(K94=0,NA(),SUMIFS(INDIRECT($A$3&"!$I:$I"),INDIRECT($A$3&"!$F:$F"),YEAR(Tab_Graph!K94))/365) ->  | L97: =IF(L94=0,NA(),SUMIFS(INDIRECT($A$3&"!$I:$I"),INDIRECT($A$3&"!$F:$F"),YEAR(Tab_Graph!L94))/365) ->  | M97: =IF(M94=0,NA(),SUMIFS(INDIRECT($A$3&"!$I:$I"),INDIRECT($A$3&"!$F:$F"),YEAR(Tab_Graph!M94))/365) ->  | N97: =IF(N94=0,NA(),SUMIFS(INDIRECT($A$3&"!$I:$I"),INDIRECT($A$3&"!$F:$F"),YEAR(Tab_Graph!N94))/365) ->  | O97: =IF(O94=0,NA(),SUMIFS(INDIRECT($A$3&"!$I:$I"),INDIRECT($A$3&"!$F:$F"),YEAR(Tab_Graph!O94))/365) ->  | P97: =IF(P94=0,NA(),SUMIFS(INDIRECT($A$3&"!$I:$I"),INDIRECT($A$3&"!$F:$F"),YEAR(Tab_Graph!P94))/365) ->  | Q97: =IF(Q94=0,NA(),SUMIFS(INDIRECT($A$3&"!$I:$I"),INDIRECT($A$3&"!$F:$F"),YEAR(Tab_Graph!Q94))/365) ->  | R97: =IF(R94=0,NA(),SUMIFS(INDIRECT($A$3&"!$I:$I"),INDIRECT($A$3&"!$F:$F"),YEAR(Tab_Graph!R94))/365) ->  | S97: =IF(S94=0,NA(),SUMIFS(INDIRECT($A$3&"!$I:$I"),INDIRECT($A$3&"!$F:$F"),YEAR(Tab_Graph!S94))/365) ->  | T97: =IF(T94=0,NA(),SUMIFS(INDIRECT($A$3&"!$I:$I"),INDIRECT($A$3&"!$F:$F"),YEAR(Tab_Graph!T94))/365) ->  | U97: =IF(U94=0,NA(),SUMIFS(INDIRECT($A$3&"!$I:$I"),INDIRECT($A$3&"!$F:$F"),YEAR(Tab_Graph!U94))/365) ->  | V97: =IF(V94=0,NA(),SUMIFS(INDIRECT($A$3&"!$I:$I"),INDIRECT($A$3&"!$F:$F"),YEAR(Tab_Graph!V94))/365) ->  | W97: =IF(W94=0,NA(),SUMIFS(INDIRECT($A$3&"!$I:$I"),INDIRECT($A$3&"!$F:$F"),YEAR(Tab_Graph!W94))/365) ->  | X97: =IF(X94=0,NA(),SUMIFS(INDIRECT($A$3&"!$I:$I"),INDIRECT($A$3&"!$F:$F"),YEAR(Tab_Graph!X94))/365) ->  | Y97: =IF(Y94=0,NA(),SUMIFS(INDIRECT($A$3&"!$I:$I"),INDIRECT($A$3&"!$F:$F"),YEAR(Tab_Graph!Y94))/365) ->  | Z97: =IF(Z94=0,NA(),SUMIFS(INDIRECT($A$3&"!$I:$I"),INDIRECT($A$3&"!$F:$F"),YEAR(Tab_Graph!Z94))/365) ->  | AA97: =IF(AA94=0,NA(),SUMIFS(INDIRECT($A$3&"!$I:$I"),INDIRECT($A$3&"!$F:$F"),YEAR(Tab_Graph!AA94))/365) ->  | AB97: =IF(AB94=0,NA(),SUMIFS(INDIRECT($A$3&"!$I:$I"),INDIRECT($A$3&"!$F:$F"),YEAR(Tab_Graph!AB94))/365) ->  | AC97: =IF(AC94=0,NA(),SUMIFS(INDIRECT($A$3&"!$I:$I"),INDIRECT($A$3&"!$F:$F"),YEAR(Tab_Graph!AC94))/365) ->  | AD97: =IF(AD94=0,NA(),SUMIFS(INDIRECT($A$3&"!$I:$I"),INDIRECT($A$3&"!$F:$F"),YEAR(Tab_Graph!AD94))/365) ->  | AE97: =IF(AE94=0,NA(),SUMIFS(INDIRECT($A$3&"!$I:$I"),INDIRECT($A$3&"!$F:$F"),YEAR(Tab_Graph!AE94))/365) -> 
A98: Pluviométrie | B98: =IF(B94=0,NA(),SUMIFS(INDIRECT($A$3&"!$J:$J"),INDIRECT($A$3&"!$F:$F"),YEAR(Tab_Graph!B94))/365) -> 1.5 | C98: =IF(C94=0,NA(),SUMIFS(INDIRECT($A$3&"!$J:$J"),INDIRECT($A$3&"!$F:$F"),YEAR(Tab_Graph!C94))/365) -> 1.7 | D98: =IF(D94=0,NA(),SUMIFS(INDIRECT($A$3&"!$J:$J"),INDIRECT($A$3&"!$F:$F"),YEAR(Tab_Graph!D94))/365) -> 1.7 | E98: =IF(E94=0,NA(),SUMIFS(INDIRECT($A$3&"!$J:$J"),INDIRECT($A$3&"!$F:$F"),YEAR(Tab_Graph!E94))/365) -> 1.8 | F98: =IF(F94=0,NA(),SUMIFS(INDIRECT($A$3&"!$J:$J"),INDIRECT($A$3&"!$F:$F"),YEAR(Tab_Graph!F94))/365) ->  | G98: =IF(G94=0,NA(),SUMIFS(INDIRECT($A$3&"!$J:$J"),INDIRECT($A$3&"!$F:$F"),YEAR(Tab_Graph!G94))/365) ->  | H98: =IF(H94=0,NA(),SUMIFS(INDIRECT($A$3&"!$J:$J"),INDIRECT($A$3&"!$F:$F"),YEAR(Tab_Graph!H94))/365) ->  | I98: =IF(I94=0,NA(),SUMIFS(INDIRECT($A$3&"!$J:$J"),INDIRECT($A$3&"!$F:$F"),YEAR(Tab_Graph!I94))/365) ->  | J98: =IF(J94=0,NA(),SUMIFS(INDIRECT($A$3&"!$J:$J"),INDIRECT($A$3&"!$F:$F"),YEAR(Tab_Graph!J94))/365) ->  | K98: =IF(K94=0,NA(),SUMIFS(INDIRECT($A$3&"!$J:$J"),INDIRECT($A$3&"!$F:$F"),YEAR(Tab_Graph!K94))/365) ->  | L98: =IF(L94=0,NA(),SUMIFS(INDIRECT($A$3&"!$J:$J"),INDIRECT($A$3&"!$F:$F"),YEAR(Tab_Graph!L94))/365) ->  | M98: =IF(M94=0,NA(),SUMIFS(INDIRECT($A$3&"!$J:$J"),INDIRECT($A$3&"!$F:$F"),YEAR(Tab_Graph!M94))/365) ->  | N98: =IF(N94=0,NA(),SUMIFS(INDIRECT($A$3&"!$J:$J"),INDIRECT($A$3&"!$F:$F"),YEAR(Tab_Graph!N94))/365) ->  | O98: =IF(O94=0,NA(),SUMIFS(INDIRECT($A$3&"!$J:$J"),INDIRECT($A$3&"!$F:$F"),YEAR(Tab_Graph!O94))/365) ->  | P98: =IF(P94=0,NA(),SUMIFS(INDIRECT($A$3&"!$J:$J"),INDIRECT($A$3&"!$F:$F"),YEAR(Tab_Graph!P94))/365) ->  | Q98: =IF(Q94=0,NA(),SUMIFS(INDIRECT($A$3&"!$J:$J"),INDIRECT($A$3&"!$F:$F"),YEAR(Tab_Graph!Q94))/365) ->  | R98: =IF(R94=0,NA(),SUMIFS(INDIRECT($A$3&"!$J:$J"),INDIRECT($A$3&"!$F:$F"),YEAR(Tab_Graph!R94))/365) ->  | S98: =IF(S94=0,NA(),SUMIFS(INDIRECT($A$3&"!$J:$J"),INDIRECT($A$3&"!$F:$F"),YEAR(Tab_Graph!S94))/365) ->  | T98: =IF(T94=0,NA(),SUMIFS(INDIRECT($A$3&"!$J:$J"),INDIRECT($A$3&"!$F:$F"),YEAR(Tab_Graph!T94))/365) ->  | U98: =IF(U94=0,NA(),SUMIFS(INDIRECT($A$3&"!$J:$J"),INDIRECT($A$3&"!$F:$F"),YEAR(Tab_Graph!U94))/365) ->  | V98: =IF(V94=0,NA(),SUMIFS(INDIRECT($A$3&"!$J:$J"),INDIRECT($A$3&"!$F:$F"),YEAR(Tab_Graph!V94))/365) ->  | W98: =IF(W94=0,NA(),SUMIFS(INDIRECT($A$3&"!$J:$J"),INDIRECT($A$3&"!$F:$F"),YEAR(Tab_Graph!W94))/365) ->  | X98: =IF(X94=0,NA(),SUMIFS(INDIRECT($A$3&"!$J:$J"),INDIRECT($A$3&"!$F:$F"),YEAR(Tab_Graph!X94))/365) ->  | Y98: =IF(Y94=0,NA(),SUMIFS(INDIRECT($A$3&"!$J:$J"),INDIRECT($A$3&"!$F:$F"),YEAR(Tab_Graph!Y94))/365) ->  | Z98: =IF(Z94=0,NA(),SUMIFS(INDIRECT($A$3&"!$J:$J"),INDIRECT($A$3&"!$F:$F"),YEAR(Tab_Graph!Z94))/365) ->  | AA98: =IF(AA94=0,NA(),SUMIFS(INDIRECT($A$3&"!$J:$J"),INDIRECT($A$3&"!$F:$F"),YEAR(Tab_Graph!AA94))/365) ->  | AB98: =IF(AB94=0,NA(),SUMIFS(INDIRECT($A$3&"!$J:$J"),INDIRECT($A$3&"!$F:$F"),YEAR(Tab_Graph!AB94))/365) ->  | AC98: =IF(AC94=0,NA(),SUMIFS(INDIRECT($A$3&"!$J:$J"),INDIRECT($A$3&"!$F:$F"),YEAR(Tab_Graph!AC94))/365) ->  | AD98: =IF(AD94=0,NA(),SUMIFS(INDIRECT($A$3&"!$J:$J"),INDIRECT($A$3&"!$F:$F"),YEAR(Tab_Graph!AD94))/365) ->  | AE98: =IF(AE94=0,NA(),SUMIFS(INDIRECT($A$3&"!$J:$J"),INDIRECT($A$3&"!$F:$F"),YEAR(Tab_Graph!AE94))/365) -> 
A99: T°C Moyenne | B99: =AVERAGE(B95:B96) -> 11.6 | C99: =AVERAGE(C95:C96) -> 10.6 | D99: 10.2 | E99: 11.6
A100: Cumul des pluies | B100: =IF(B94="",NA(),B98) -> 1.5 | C100: =IF(C94="",NA(),B100+C98) -> 3.2 | D100: 5.0 | E100: 6.8 | AE100: =IF(AE94="",NA(),AD100+AE98) -> 
A101: Cumul de l'ensoleillement | B101: =IF(B94="",NA(),B97) -> 4.9 | C101: =IF(C94="",NA(),B101+C97) -> 9.3 | D101: 13.5 | E101: 17.8 | AE101: =IF(AE94="",NA(),AD101+AE97) -> 
A102: Normal T°C Min sur 10 ans | B102: =IF(B94=0,NA(),SUM(SUMIFS(INDIRECT($A$3&"!$G:$G"),INDIRECT($A$3&"!$F:$F"),YEAR(B94)),SUMIFS(INDIRECT($A$3&"!$G:$G"),INDIRECT($A$3&"!$F:$F"),YEAR(B94)-1),SUMIFS(INDIRECT($A$3&"!$G:$G"),INDIRECT($A$3&"!$F:$F"),YEAR(B94)-2),SUMIFS(INDIRECT($A$3&"!$G:$G"),INDIRECT($A$3&"!$F:$F"),YEAR(B94)-3),SUMIFS(INDIRECT($A$3&"!$G:$G"),INDIRECT($A$3&"!$F:$F"),YEAR(B94)-4),SUMIFS(INDIRECT($A$3&"!$G:$G"),INDIRECT($A$3&"!$F:$F"),YEAR(B94)-5),SUMIFS(INDIRECT($A$3&"!$G:$G"),INDIRECT($A$3&"!$F:$F"),YEAR(B94)-6),SUMIFS(INDIRECT($A$3&"!$G:$G"),INDIRECT($A$3&"!$F:$F"),YEAR(B94)-7),SUMIFS(INDIRECT($A$3&"!$G:$G"),INDIRECT($A$3&"!$F:$F"),YEAR(B94)-8),SUMIFS(INDIRECT($A$3&"!$G:$G"),INDIRECT($A$3&"!$F:$F"),YEAR(B94)-9))/(365*10)) -> 3.73 | C102: 4.34 | D102: 4.93 | E102: 5.63
A103: Normal T°C Max sur 10 ans | B103: =IF(B94=0,NA(),SUM(SUMIFS(INDIRECT($A$3&"!$H:$H"),INDIRECT($A$3&"!$F:$F"),YEAR(B94)),SUMIFS(INDIRECT($A$3&"!$H:$H"),INDIRECT($A$3&"!$F:$F"),YEAR(B94)-1),SUMIFS(INDIRECT($A$3&"!$H:$H"),INDIRECT($A$3&"!$F:$F"),YEAR(B94)-2),SUMIFS(INDIRECT($A$3&"!$H:$H"),INDIRECT($A$3&"!$F:$F"),YEAR(B94)-3),SUMIFS(INDIRECT($A$3&"!$H:$H"),INDIRECT($A$3&"!$F:$F"),YEAR(B94)-4),SUMIFS(INDIRECT($A$3&"!$H:$H"),INDIRECT($A$3&"!$F:$F"),YEAR(B94)-5),SUMIFS(INDIRECT($A$3&"!$H:$H"),INDIRECT($A$3&"!$F:$F"),YEAR(B94)-6),SUMIFS(INDIRECT($A$3&"!$H:$H"),INDIRECT($A$3&"!$F:$F"),YEAR(B94)-7),SUMIFS(INDIRECT($A$3&"!$H:$H"),INDIRECT($A$3&"!$F:$F"),YEAR(B94)-8),SUMIFS(INDIRECT($A$3&"!$H:$H"),INDIRECT($A$3&"!$F:$F"),YEAR(B94)-9))/(365*10)) -> 9.3 | C103: 10.8 | D103: 12.3 | E103: 13.9
A104: Normal Ensoleillement sur 10 ans | B104: =IF(B94=0,NA(),SUM(SUMIFS(INDIRECT($A$3&"!$I:$I"),INDIRECT($A$3&"!$F:$F"),YEAR(B94)),SUMIFS(INDIRECT($A$3&"!$I:$I"),INDIRECT($A$3&"!$F:$F"),YEAR(B94)-1),SUMIFS(INDIRECT($A$3&"!$I:$I"),INDIRECT($A$3&"!$F:$F"),YEAR(B94)-2),SUMIFS(INDIRECT($A$3&"!$I:$I"),INDIRECT($A$3&"!$F:$F"),YEAR(B94)-3),SUMIFS(INDIRECT($A$3&"!$I:$I"),INDIRECT($A$3&"!$F:$F"),YEAR(B94)-4),SUMIFS(INDIRECT($A$3&"!$I:$I"),INDIRECT($A$3&"!$F:$F"),YEAR(B94)-5),SUMIFS(INDIRECT($A$3&"!$I:$I"),INDIRECT($A$3&"!$F:$F"),YEAR(B94)-6),SUMIFS(INDIRECT($A$3&"!$I:$I"),INDIRECT($A$3&"!$F:$F"),YEAR(B94)-7),SUMIFS(INDIRECT($A$3&"!$I:$I"),INDIRECT($A$3&"!$F:$F"),YEAR(B94)-8),SUMIFS(INDIRECT($A$3&"!$I:$I"),INDIRECT($A$3&"!$F:$F"),YEAR(B94)-9))/(365*10)) -> 2.9 | C104: 3.3 | D104: 3.7 | E104: 4.2
A105: Normal Pluviométrie sur 10 ans | B105: =IF(B94=0,NA(),SUM(SUMIFS(INDIRECT($A$3&"!$J:$J"),INDIRECT($A$3&"!$F:$F"),YEAR(B94)),SUMIFS(INDIRECT($A$3&"!$J:$J"),INDIRECT($A$3&"!$F:$F"),YEAR(B94)-1),SUMIFS(INDIRECT($A$3&"!$J:$J"),INDIRECT($A$3&"!$F:$F"),YEAR(B94)-2),SUMIFS(INDIRECT($A$3&"!$J:$J"),INDIRECT($A$3&"!$F:$F"),YEAR(B94)-3),SUMIFS(INDIRECT($A$3&"!$J:$J"),INDIRECT($A$3&"!$F:$F"),YEAR(B94)-4),SUMIFS(INDIRECT($A$3&"!$J:$J"),INDIRECT($A$3&"!$F:$F"),YEAR(B94)-5),SUMIFS(INDIRECT($A$3&"!$J:$J"),INDIRECT($A$3&"!$F:$F"),YEAR(B94)-6),SUMIFS(INDIRECT($A$3&"!$J:$J"),INDIRECT($A$3&"!$F:$F"),YEAR(B94)-7),SUMIFS(INDIRECT($A$3&"!$J:$J"),INDIRECT($A$3&"!$F:$F"),YEAR(B94)-8),SUMIFS(INDIRECT($A$3&"!$J:$J"),INDIRECT($A$3&"!$F:$F"),YEAR(B94)-9))/(365*10)) -> 1.1 | C105: 1.2 | D105: 1.4 | E105: 1.6
A106: Normal T°C Moyenne sur 10 ans | B106: =AVERAGE(B102:B103) -> 6.5 | C106: =AVERAGE(C102:C103) -> 7.6 | D106: 8.6 | E106: 9.8
A107: Cumul des pluies Normal | B107: =IF(B94="",NA(),B105) -> 1.1 | C107: =IF(C94="",NA(),B107+C105) -> 2.3 | D107: 3.7 | E107: 5.3 | AE107: =IF(AE94="",NA(),AD107+AE105) -> 
A108: Cumul de l'ensoleillement Normal | B108: =IF(B94="",NA(),B104) -> 2.9 | C108: =IF(C94="",NA(),B108+C104) -> 6.2 | D108: 9.9 | E108: 14.1 | AE108: =IF(AE94="",NA(),AD108+AE104) -> 
Y115: =CONCATENATE("Ensoleillement à ",A3," de ",D8," à ",D9) -> Ensoleillement à Beauvais de 2011 à 2015
L116: =CONCATENATE("Pluviométrie à ",A3," de ",D8," à ",D9) -> Pluviométrie à Beauvais de 2011 à 2015
E117: =CONCATENATE("Température à ",A3," de ",D8," à ",D9) -> Température à Beauvais de 2011 à 2015

Sheet Graphique Jour Rouen (hidden)

Sheet Graphique Mois Rouen (hidden)

Sheet Graphique Année Rouen (hidden)

Sheet Graphique Jour Abbeville (hidden)

Sheet Graphique Mois Abbeville (hidden)

Sheet Graphique Année Abbeville (hidden)

Sheet Graphique Jour Le Havre (hidden)

Sheet Graphique Mois Le Havre (hidden)

Sheet Graphique Année Le Havre (hidden)

Sheet Graphique Jour Trappes (hidden)

Sheet Graphique Mois Trappes (hidden)

Sheet Graphique Année Trappes (hidden)

Sheet Graphique Jour Evreux (hidden)

Sheet Graphique Mois Evreux (hidden)

Sheet Graphique Année Evreux (hidden)

Sheet Graphique Jour Dieppe (hidden)

Sheet Graphique Mois Dieppe (hidden)

Sheet Graphique Année Dieppe (hidden)

Sheet Graphique Jour Beauvais (hidden)

Sheet Graphique Mois Beauvais

Sheet Graphique Année Beauvais (hidden)

Sheet Graphique Jour Pontoise (hidden)

Sheet Graphique Mois Pontoise (hidden)

Sheet Graphique Année Pontoise (hidden)

Sheet Graphique Jour Chartres (hidden)

Sheet Graphique Mois Chartres (hidden)

Sheet Graphique Année Chartres (hidden)
